Cogmind - Beta 12 X4 @@@ ROGUE MODE // 2022.12.24 @ 03:59:46 Player: aperiodic Result: Establishing Free Derelict Territories! Performance ------------- Evolutions (9) 4500 Regions Visited (32) 6400 Robots Destroyed (539) 2695 Value Destroyed (25180) 25180 Prototype IDs (123) 2460 Alien Tech Used (12) 2400 Bonus (33114) 33114 TOTAL SCORE: 76749 Bonus ------- High Alert Combat Kills 4628 Follower Combat Kills 1513 Network Hubs Disabled 400 Met Data Miner 300 Met Zhirov 300 Met Warlord at Base 500 MAIN.C Attacked Warlord 500 Destroyed MAIN.C Guards 500 Met MAIN.C 5000 Destroyed MAIN.C Shell 5000 Destroyed MAIN.C 10000 Met Warlord at Command 2000 Win 3000 Friendly Fire -527 Cogmind --------- Core Integrity 1315/1600 Matter 550/800 Energy 1403/1403 System Corruption 0% Temperature Cool (0) Movement Treading (56) Location Free Derelict Territories Parts ------- > --- POWER (2) -------- Cooled Particle-Quantum Reactor > --- PROPULSION (6) --- Treaded Biometal-Siege Exoskeleton > --- UTILITY (14) ----- Armored Scrap Engine High-capacity Storage Unit Experimental Energy Well Experimental Matter Compressor Experimental Targeting Computer Experimental Core Analyzer Improved Armor Integrity Analyzer Experimental Weapon Cycler Heavy Regenerative Plating Graphene Brace Beam Splitter > --- WEAPON (4) ------- Shotgun Kinetic Rail Construct/C > --- INVENTORY (20) --- Experimental Energy Well (600) Advanced Quantum Shading Machine Experimental Sensor Array Experimental Shock Absorption System Experimental EM Disruption Field Long-range Tractor Beam Transdimensional Reconstructor Transdimensional Reconstructor Integrity Redistributor Integrity Redistributor Subatomic Replicator Spacefold Activator Hellfire Missile Launcher Core Stripper Peak State ------------ > --- POWER ------------ Cooled Particle-Quantum Reactor > --- PROPULSION ------- Treaded Biometal-Siege Exoskeleton > --- UTILITY ---------- Armored Scrap Engine High-capacity Storage Unit Quantum Shading Machine Advanced Signal Interpreter Experimental Targeting Computer Experimental Weapon Cycler Experimental Transmission Jammer Heavy Regenerative Plating Experimental Force Field Hacking Suite Advanced Hacking Suite Ghost Barrier > --- WEAPON ----------- Shotgun Kinetic Rail Construct/C Sigix Broadsword > --- INVENTORY -------- Experimental Energy Well Experimental Energy Well Experimental Matter Compressor Experimental Sensor Array Improved Weapon Shielding Experimental Weapon Shielding Graphene Brace Beam Splitter Experimental EM Disruption Field Long-range Tractor Beam Transdimensional Reconstructor Transdimensional Reconstructor Integrity Redistributor Integrity Redistributor Subatomic Replicator Spacefold Activator Hellfire Missile Launcher Guided Remote Datajack Core Stripper [Rating: 239] Favorites ----------- Power Constructs Engine Improved Ion Engine Power Core Micro Fission Core Reactor Constructs Propulsion Constructs Treads Constructs Wheel Wheel Hover Unit Improved Gyrokinetic Inverter Utility High-capacity Storage Unit Device Armored Scrap Engine Storage High-capacity Storage Unit Processor Experimental Targeting Computer Hackware Advanced Hacking Suite Protection Heavy Regenerative Plating Artifact Spacefold Activator Weapon Constructs Energy Gun Improved Medium Laser Energy Cannon Cooled Plasma Cannon Ballistic Gun Minigun Ballistic Cannon Constructs Launcher Grenade Launcher Special Weapon Guided Remote Datajack Impact Weapon Core Stripper Slashing Weapon Sigix Broadsword Piercing Weapon Lance Special Melee Weapon Dirty Datajack Build | -11 -10 -10 -9 -9 -8 -7 -7 -7 -7 -6 -6 -6 -6 -6 -6 -5 -5 -5 -5 -4 -4 -4 -4 -4 -3 -3 -3 -2 -2 -2 -1 -1 ------- Run | Scr Mat Min Mat Min Mat Fac Low Low Dat Pro Fac Ext Cet Arc Hub Fac Upp Upp Zhi Pro Fac Upp Upp War Pro Res Tes Res Qua Sec Acc Com Slots Evolved 18 | . . . 2 . 2 2 . . . . 2 . . . . 2 . . . . 2 . . . . 2 . 2 . . 2 . Power 1 | . . . . . . . . . . . . . . . . 1 . . . . . . . . . . . . . . . . Propulsion 3 | . . . . . . 1 . . . . 1 . . . . . . . . . . . . . . 1 . . . . . . Utility 12 | . . . 2 . 2 1 . . . . 1 . . . . . . . . . 2 . . . . 1 . 1 . . 2 . Weapon 2 | . . . . . . . . . . . . . . . . 1 . . . . . . . . . . . 1 . . . . Parts Attached 567 | 8 22 7 51 11 44 23 10 11 2 7 16 3 4 5 19 35 1 . 3 3 26 4 10 11 3 22 60 6 34 50 37 19 Power 19 | 1 1 1 2 . 5 . . . . . . . . . . 3 . . 1 . 2 . . 1 . . 1 . . 1 . . Engine 5 | 1 1 1 1 . 1 . . . . . . . . . . . . . . . . . . . . . . . . . . . Core 9 | . . . 1 . 4 . . . . . . . . . . 3 . . . . 1 . . . . . . . . . . . Reactor 5 | . . . . . . . . . . . . . . . . . . . 1 . 1 . . 1 . . 1 . . 1 . . Propulsion 50 | 2 7 4 22 7 6 1 . . . . . . . . . . . . . . . . . . . 1 . . . . . . Treads 17 | . 3 . 11 . 2 1 . . . . . . . . . . . . . . . . . . . . . . . . . . Leg . | . . . . . . . . . . . . . . . . . . . . . . . . . . . . . . . . . Wheel 32 | 2 4 4 11 7 4 . . . . . . . . . . . . . . . . . . . . . . . . . . . Hover 1 | . . . . . . . . . . . . . . . . . . . . . . . . . . 1 . . . . . . Flight . | . . . . . . . . . . . . . . . . . . . . . . . . . . . . . . . . . Utility 369 | 2 4 . 7 2 7 15 6 8 1 5 16 3 4 5 19 23 1 . 2 3 24 4 10 8 1 19 47 5 22 47 32 17 Device 254 | 1 3 . 2 1 3 10 4 5 1 5 4 2 2 3 7 11 1 . 1 2 11 3 7 5 1 15 40 4 17 44 27 12 Storage 15 | 1 1 . . . . 1 . . . . 1 . 1 . . 1 . . . . 1 . . 1 . . 2 1 2 . . 2 Processor 6 | . . . . . . 1 . . . . 1 . . . . 1 . . . . . . . . . . . . . . 1 2 Hackware 10 | . . . 1 . . . . . . . 1 . . . 1 2 . . . . 1 . . . . 1 . . . . 3 . Protection 81 | . . . 4 1 4 3 2 3 . . 9 1 1 2 11 8 . . 1 1 11 1 3 2 . 3 5 . 2 1 1 1 Artifact 3 | . . . . . . . . . . . . . . . . . . . . . . . . . . . . . 1 2 . . Weapon 129 | 3 10 2 20 2 26 7 4 3 1 2 . . . . . 9 . . . . . . . 2 2 2 12 1 12 2 5 2 Energy Gun 17 | 1 7 1 4 . . 1 . . . . . . . . . 1 . . . . . . . 1 . . 1 . . . . . Energy Cannon 14 | . . . . . 2 2 1 1 . 1 . . . . . 3 . . . . . . . . . . 2 . 2 . . . Ballistic Gun 38 | 2 2 1 10 1 13 4 1 1 1 1 . . . . . . . . . . . . . . . . 1 . . . . . Ballistic Cannon 1 | . . . . . . . . . . . . . . . . 1 . . . . . . . . . . . . . . . . Launcher 11 | . . . 1 . 3 . 1 1 . . . . . . . . . . . . . . . . 1 1 1 . . . 2 . Special Weapon 21 | . 1 . 5 1 8 . 1 . . . . . . . . . . . . . . . . . . . 1 . 3 . . 1 Impact Weapon 4 | . . . . . . . . . . . . . . . . . . . . . . . . . . . . . 2 1 . 1 Slashing Weapon 5 | . . . . . . . . . . . . . . . . . . . . . . . . . . . . . 1 1 3 . Piercing Weapon 14 | . . . . . . . . . . . . . . . . 4 . . . . . . . 1 1 1 6 . 1 . . . Special Melee Weapon 4 | . . . . . . . . . . . . . . . . . . . . . . . . . . . . 1 3 . . . Unidentified Prototypes 49 | . 1 . . . 4 2 . . . . 1 . 2 . . 2 . . 2 . 2 . . 5 1 3 13 . 9 1 . 1 Parts Lost 13 | . 1 2 . . 2 . . . . . . . . . . 2 . . . . 2 . . . . . . . 1 . 2 1 Power 2 | . . 1 . . . . . . . . . . . . . 1 . . . . . . . . . . . . . . . . Propulsion 1 | . . 1 . . . . . . . . . . . . . . . . . . . . . . . . . . . . . . Utility 5 | . . . . . . . . . . . . . . . . . . . . . 2 . . . . . . . 1 . 1 1 Weapon 5 | . 1 . . . 2 . . . . . . . . . . 1 . . . . . . . . . . . . . . 1 . Highest Loss Streak 2 | . 1 2 . . 1 . . . . . . . . . . 1 . . . . 1 . . . . . . . 1 . 2 1 To Critical Strikes . | . . . . . . . . . . . . . . . . . . . . . . . . . . . . . . . . . Average Slot Usage (%) 71 | . 99 98 99 100 99 72 63 65 69 76 64 60 59 65 65 65 69 70 70 70 72 73 68 67 62 58 59 64 62 58 60 57 Engine 1 | . 14 13 8 11 1 4 . . . . . . . . . . . . . . . . . 3 . . . . . . . . Core 3 | . . . 2 . 8 2 7 7 7 7 6 6 6 6 6 6 10 11 8 5 5 5 . . . . . . . . . . Reactor 2 | . . . . . . . . . . . . . . . . . . . 2 5 5 5 4 5 5 4 7 8 5 4 3 3 Treads 2 | . 1 . 5 . . 5 7 4 . . 1 6 4 5 6 5 5 5 5 5 5 . . . . . 3 . . . 1 3 Wheel 3 | . 26 27 16 21 17 2 . . . . . . . . . . . . . . . . . . . . . . . . . . Device 14 | . 13 14 13 10 17 15 15 15 15 15 12 12 12 19 12 10 10 11 11 10 12 14 11 11 15 12 10 14 15 15 18 13 Storage 6 | . 14 14 11 11 9 7 7 7 7 7 6 6 6 6 6 5 5 5 5 5 5 5 5 5 5 4 4 4 4 4 3 4 Processor 6 | . . . . . . 7 7 7 7 7 6 6 6 6 6 11 11 11 11 11 10 10 10 10 10 9 9 8 8 8 7 11 Hackware 8 | . . . 8 11 9 7 7 7 7 7 8 6 6 6 7 11 11 11 11 11 9 10 10 9 5 8 9 8 8 8 11 11 Protection 5 | . . . 11 11 18 4 . 2 7 7 9 6 6 6 12 . . . . . 7 5 8 5 5 4 4 4 4 4 3 3 Energy Gun 1 | . 25 27 7 . . . . . . . . . . . . . . . . . . . . . . . . . . . . . Energy Cannon 1 | . . . . . . . . . . 2 1 . 3 6 6 5 . . . . . . . 1 5 1 3 2 2 . . . Ballistic Gun 3 | . 2 . 13 21 16 9 8 8 7 11 . . . . . . . . . . . . . . . . . . . . . . Ballistic Cannon 1 | . . . . . . . . . . . 4 6 2 . . 2 5 5 5 5 5 5 5 3 . 2 . 1 1 4 3 3 Piercing Weapon 1 | . . . . . . . . . . . . . . . . 2 5 5 5 5 5 5 5 4 4 3 3 4 . . . . Naked Turns . | . . . . . . . . . . . . . . . . . . . . . . . . . . . . . . . . . Heaviest Build 158 | 12 52 52 65 67 69 68 69 65 68 69 95 102 102 102 82 80 77 77 96 90 105 102 99 121 121 135 142 130 158 143 136 132 Greatest Support 274 | 26 40 26 40 40 32 54 54 65 65 65 110 110 110 110 144 144 144 144 144 144 171 171 171 171 98 131 151 148 195 274 273 273 Greatest Overweight (x) 23 | . 1 4 5 3 3 3 1 1 1 1 1 . . 23 1 . . . . . . . . 1 1 1 1 . . . 1 . Average Overweight (x) . | . . 1 2 2 1 . . . . . . . . 12 . . . . . . . . . . 1 . . . . . . . Largest Inventory Capacity 20 | 8 20 20 20 20 20 20 20 20 20 20 20 20 20 20 20 20 20 20 20 20 20 20 20 20 20 20 20 20 20 20 20 20 Average Capacity 19 | 7 17 20 20 20 20 20 20 20 20 20 20 20 20 20 20 20 20 20 20 20 20 20 20 20 20 20 20 20 20 20 20 20 Most Carried 20 | 6 20 20 20 20 20 20 20 19 19 19 20 20 20 20 20 20 20 20 20 20 20 18 19 20 20 20 20 19 20 20 20 20 Average Carried 19 | 3 11 19 19 19 19 18 19 18 18 18 19 20 19 19 19 19 20 20 19 20 19 17 18 19 20 19 19 18 19 19 19 18 Final Capacity 20 | 8 20 20 20 20 20 20 20 20 20 20 20 20 20 20 20 20 20 20 20 20 20 20 20 20 20 20 20 20 20 20 20 20 Final Carried 20 | 6 20 20 20 20 20 18 17 19 18 19 20 20 19 20 20 20 20 20 20 20 18 18 18 20 20 20 20 19 20 20 19 15 Scrap Engine Consumption 241 | . . . . . . 17 2 2 . 2 14 16 9 3 4 21 1 . 1 . 19 . 3 9 1 12 18 7 23 30 12 15 Constructs Created 5 | . . . . . . 3 . . . . . . . . . . 1 . . . . . . . . . 1 . . . . . Constructs Modified 96 | . . . . . . 2 . 2 . 1 5 7 2 2 2 5 . . . . 10 1 2 4 . 5 5 6 9 11 7 8 Class Distribution -------------------- 25% | Hacker-Mutant 24% | Construct 22% | Hacker-Construct 12% | Mutant 8% | Scavenger-Mutant Dominant Class ---------------- Mutant | -10/Materials Mutant | -10/Mines Scavenger-Mutant | -9/Materials Scavenger-Mutant | -9/Mines Mutant | -8/Materials Mutant | -7/Factory Construct | -7/Lower Caves Construct | -7/Lower Caves Construct | -7/Data Miner Construct | -6/Proximity Caves Construct | -6/Factory Construct | -6/Extension Construct | -6/Cetus Construct | -6/Archives Construct | -6/Hub_04(d) Hacker-Construct | -5/Factory Hacker-Construct | -5/Upper Caves Hacker-Construct | -5/Upper Caves Hacker-Construct | -5/Zhirov Hacker-Construct | -4/Proximity Caves Hacker-Construct | -4/Factory Hacker-Construct | -4/Upper Caves Hacker-Construct | -4/Upper Caves Commander-Construct | -4/Warlord Commander-Mutant | -3/Proximity Caves Hacker-Mutant | -3/Research Hacker-Mutant | -3/Testing Hacker-Mutant | -2/Research Hacker-Mutant | -2/Quarantine Hacker-Mutant | -2/Section 7 Hacker-Mutant | -1/Access Wizard-Mutant | -1/Command Resources | -11 -10 -10 -9 -9 -8 -7 -7 -7 -7 -6 -6 -6 -6 -6 -6 -5 -5 -5 -5 -4 -4 -4 -4 -4 -3 -3 -3 -2 -2 -2 -1 -1 ----------- Run | Scr Mat Min Mat Min Mat Fac Low Low Dat Pro Fac Ext Cet Arc Hub Fac Upp Upp Zhi Pro Fac Upp Upp War Pro Res Tes Res Qua Sec Acc Com Matter Collected 15922 | 291 319 76 1082 226 1193 408 243 416 . 173 143 444 120 271 635 832 20 4 . 90 1055 369 828 400 257 416 1144 163 376 1623 1395 910 Remotely 1051 | . . . . . . . . . . . . . . . . . . . . . 71 . 287 . . 84 . . . . 338 271 Salvage Created 27335 | 141 465 262 1503 136 1323 204 205 348 . . 111 508 135 525 2307 1957 . 49 . 108 2946 289 429 . 185 1001 1635 504 938 4085 2874 2162 Parts 1394 | 10 31 17 104 13 87 6 14 20 . . 5 25 12 29 130 66 . 4 . 5 130 16 25 . 11 45 96 29 32 210 140 82 Haulers Intercepted 36 | . 2 . 5 . 4 1 . . . . . . . . 6 3 . . . . 2 . . . . 2 2 . 2 6 1 . Recyclers Shooed 9 | . . . 2 . 1 . . . . . 1 1 . . 1 1 . . . . 1 . . . . . . . . . 1 . Parts Field Recycled . | . . . . . . . . . . . . . . . . . . . . . . . . . . . . . . . . . Retrieved Matter . | . . . . . . . . . . . . . . . . . . . . . . . . . . . . . . . . . Parts Self-Destructed 96 | . . . . . . . 10 15 . 6 . . . . . . . . . 5 . 18 25 . 17 . . . . . . . Prevented 3 | . . . . . . . . 3 . . . . . . . . . . . . . . . . . . . . . . . . Kills | -11 -10 -10 -9 -9 -8 -7 -7 -7 -7 -6 -6 -6 -6 -6 -6 -5 -5 -5 -5 -4 -4 -4 -4 -4 -3 -3 -3 -2 -2 -2 -1 -1 ------- Run | Scr Mat Min Mat Min Mat Fac Low Low Dat Pro Fac Ext Cet Arc Hub Fac Upp Upp Zhi Pro Fac Upp Upp War Pro Res Tes Res Qua Sec Acc Com Combat Hostiles Destroyed 378 | . 12 5 27 . 28 3 5 8 . . 5 8 5 4 28 29 . . . 2 42 4 7 . 4 13 17 5 8 47 44 18 Melee 4 | . . . . . . . . . . . . . . . . . . . . . . . . . . . . . . 3 . 1 Guns 69 | . 12 5 23 . 18 2 4 5 . . . . . . . . . . . . . . . . . . . . . . . . Cannons 263 | . . . . . . 1 1 . . . 5 8 5 4 25 27 . . . 2 42 4 7 . 1 10 17 5 7 43 33 16 AOE 36 | . . . 4 . 10 . . 3 . . . . . . 2 . . . . . . . . . 3 3 . . . . 11 . Classes Destroyed 20 | 2 6 . 1 1 . 1 2 . . . 2 2 . . 1 . . . . . . . . . . . . . 1 . 1 . Worker 33 | . 1 . 3 3 . . . . . . . . . . 12 2 . . . . 2 . . . . 1 2 . 1 1 3 2 Builder 10 | . . . . 1 . . . . . . . 1 . . 3 1 . . . . . . . . . . . . . 2 2 . Tunneler 12 | 4 . 4 . 2 . . . . . . . 1 . . . . . . . . . . . . . . . . . . 1 . Hauler 36 | . 2 . 5 . 4 1 . . . . . . . . 6 3 . . . . 2 . . . . 2 2 . 2 6 1 . Recycler 12 | 1 . 1 2 . 3 1 . . . . . 1 . . 1 . . . . . . . . . . . 1 . . . . 1 Operator 16 | . 1 . . . . . . . . . . . . 9 2 . . . . . 1 . . . . . . . . 1 . 2 Watcher 41 | . 2 . 4 . 4 . . . . . 1 . . . 5 1 . . . . 5 . . . . 1 3 5 2 4 3 1 Swarmer 90 | . 6 3 8 . 14 . 4 7 . . . . 4 . 7 4 . . . . 4 . . . 3 3 . . . 12 11 . Cutter 6 | . . . . . . . . . . . 2 . . . 2 . . . . . . . . . . . . . . 2 . . Saboteur 2 | . . . . . . . . . . . . . . . . . . . . . . . . . . . . . . . 1 1 Grunt 92 | . 6 2 12 . 9 . . . . . . 1 . . 8 8 . . . . 16 4 5 . . 1 3 1 1 4 8 3 Brawler 10 | . . . . . . . . . . . . 1 . . 1 5 . . . . . . . . . . 1 . . . 1 1 Duelist 4 | . . . . . . . . . . . . . . . 1 1 . . . . 1 . . . . . . . . . 1 . Sentry 48 | . . . 7 . 5 2 . . . . 2 4 . 4 5 1 . . . . 3 . . . . 2 . . . 8 1 4 Hunter 29 | . . . . . . . 1 1 . . . 1 1 . . . . . . . 7 . . . . 4 . . . 2 11 1 Programmer 82 | . . . . . . 1 . . . . . . . . 3 10 . . . 2 11 . 2 . . 3 12 4 6 16 8 4 Heavy 5 | . . . . . . . . . . . 1 . . . 1 . . . . . . . . . . . . . . 1 2 . Behemoth 4 | . . . . . . . . . . . . 1 . . . . . . . . . . . . 1 . . . . 1 . 1 S7 Guard 1 | . . . . . . . . . . . . . . . . . . . . . . . . . . . . . . 1 . . Combat Programmer 1 | . . . . . . . . . . . . . . . . . . . . . . . . . . . . . . . . 1 Fortress 1 | . . . . . . . . . . . . . . . . . . . . . . . . . . . . . 1 . . . Protovariant P 1 | . . . . . . . . . . . . . . . . . . . . . . . . . . . 1 . . . . . Samaritan 8 | . . . . . . . 3 4 . . . . . . . . . 1 . . . . . . . . . . . . . . Thug 1 | . . . . . . . . . . . . . . . . . . . . . . . . . . . . . . . . 1 Savage 1 | . . . . . . . . . . . . . . . . . . . . . . . . . . . . . . . . 1 Best Kill Streak 20 | 2 4 3 6 2 7 2 4 4 . . 3 4 5 7 20 9 . . . 2 6 4 4 . 3 5 5 3 3 5 20 3 Combat Bots Only 15 | . 4 3 4 . 7 1 4 4 . . 3 2 5 2 8 9 . . . 2 6 4 4 . 3 5 3 2 3 4 15 3 Max Kills in Single Turn 14 | 1 2 1 3 1 3 1 2 3 . . 1 1 1 1 14 2 . 1 . 1 1 1 1 . 3 3 2 1 1 2 3 1 Gunslinging 1 | . 1 . . . . . 1 1 . . . . . . . . . . . . . . . . . . . . . . . . Exploded 3 | . . . 3 . 3 . . 3 . . . . . . 2 . . . . . . . . . 3 3 . . . . 2 . Melee 1 | . . . . . . . . . . . . . . . . . . . . . . . . . . . . . . 1 . 1 Uniques/NPCs Destroyed 1 | . . . . . . . . . . . . . . . . . . . . . . . . . . . . . . . . 1 MAIN.C Shell (-1/Command) Combat | -11 -10 -10 -9 -9 -8 -7 -7 -7 -7 -6 -6 -6 -6 -6 -6 -5 -5 -5 -5 -4 -4 -4 -4 -4 -3 -3 -3 -2 -2 -2 -1 -1 -------- Run | Scr Mat Min Mat Min Mat Fac Low Low Dat Pro Fac Ext Cet Arc Hub Fac Upp Upp Zhi Pro Fac Upp Upp War Pro Res Tes Res Qua Sec Acc Com Damage Taken 19159 | . 359 199 737 88 565 237 115 189 . 277 383 488 320 86 964 677 . . . 65 2276 55 380 65 35 605 645 1189 1066 1390 2226 3478 Core 1251 | . 53 19 74 . 69 48 11 23 . 40 6 24 10 . 45 55 . . . . 93 . 49 . . 18 . 44 135 150 72 213 Absorbed by Shields 4471 | . 71 . 79 . 308 196 40 68 . 68 60 142 133 42 91 . . . . . 70 30 126 15 33 323 145 . 278 1354 776 23 Reduced by Siege Mode 465 | . . . . . . . . . . . . . . . . . . . . . 135 . 32 . . . . . . . 89 209 Regen/Repaired (Parts) 10005 | . 29 . . . . 24 11 56 . 170 173 321 118 83 374 842 . . . . 819 302 124 555 . 235 560 681 818 1209 748 1753 Core Remaining (%) 86 | 100 . 71 . 81 87 . . . . 82 . . . . 90 . . . . 94 . . . . 87 . 98 . . 77 . 82 Volleys Fired 1515 | 11 44 25 90 18 104 24 31 32 . 14 24 44 15 33 70 49 . 1 . 5 133 6 47 . 3 55 98 49 56 174 143 117 Largest 2 | 2 2 2 2 2 2 2 2 2 . 2 1 1 1 1 1 2 . 1 . 1 1 1 1 . 1 1 1 1 1 1 1 1 Hottest 148 | 70 112 112 112 100 136 99 100 99 . 99 68 68 45 45 45 80 . 45 . 45 45 28 28 . 46 46 91 91 91 62 62 148 Shots Fired 1804 | 22 83 50 165 31 182 44 39 39 . 28 24 44 15 33 70 52 . 1 . 5 133 6 47 . 3 55 96 49 56 172 143 117 Gun 602 | 22 80 50 150 26 154 33 32 35 . 20 . . . . . . . . . . . . . . . . . . . . . . Cannon 1135 | . . . . . 2 11 4 2 . 8 24 44 15 33 70 52 . 1 . 5 133 6 47 . 2 53 96 49 53 172 137 116 Launcher 25 | . . . 4 . 9 . 1 2 . . . . . . . . . . . . . . . . 1 2 . . . . 6 . Special 42 | . 3 . 11 5 17 . 2 . . . . . . . . . . . . . . . . . . . . . 3 . . 1 Kinetic 1287 | 11 26 2 88 26 154 33 32 35 . 20 24 44 15 33 57 1 . 1 . 5 129 6 47 . . 38 13 22 . 172 137 116 Thermal 471 | 11 57 48 73 5 19 11 6 2 . 8 . . . . 13 51 . . . . 4 . . . . . 83 27 53 . . . Explosive 25 | . . . 4 . 9 . 1 2 . . . . . . . . . . . . . . . . 1 2 . . . . 6 . Electromagnetic . | . . . . . . . . . . . . . . . . . . . . . . . . . . . . . . . . . Entropic 17 | . . . . . . . . . . . . . . . . . . . . . . . . . 2 15 . . . . . . Robot Hit Streak 44 | 3 13 11 12 4 16 18 28 23 . 8 15 31 12 19 35 19 . 10 . 12 24 24 27 . 10 14 8 7 12 39 17 44 Robot Miss Streak 8 | 2 3 3 5 2 5 4 3 5 . 5 8 6 3 3 4 4 . . . 5 4 . 1 . . 1 2 2 1 3 3 5 Penetration Max 2 | . . . . . . . . . . . 1 1 . . . . . . . . . . . . . . 2 1 . 1 . 1 Secondary Targets 8 | . 2 1 2 . . . 1 2 . . . . . . . . . . . . . . . . . . . . . . . . Max Gunslinging Chain 1 | . 1 1 1 . . . 1 1 . . . . . . . . . . . . . . . . . . . . . . . . Shots Hit Robots 1258 | 12 55 33 97 13 100 37 33 35 . 22 23 44 15 33 70 49 . 1 . 3 114 6 11 . 2 39 41 22 30 150 87 81 Core Hits 974 | 9 25 11 52 6 62 34 43 32 . 13 28 57 25 55 125 74 . 2 . 3 91 4 7 . 4 17 11 6 8 72 51 47 Critical Kills 12 | . . . . . . . . 1 . . . 2 . 1 3 . . . . . 1 . . . . . . . . 2 2 . Critical Parts Destroyed 23 | . 1 . . . 1 4 . . . 1 . 3 2 3 2 . . . . . 3 . . . . 1 . . . 1 . 1 Critical Strikes 50 | . 3 3 3 . 1 4 . 1 . 1 . 7 2 4 5 4 . . . . 5 . . . . 1 . . . 3 2 1 Burn 8 | . 2 3 3 . . . . . . . . . . . . . . . . . . . . . . . . . . . . . Destroy 36 | . 1 . . . 1 4 . 1 . 1 . 7 2 4 5 . . . . . 4 . . . . . . . . 3 2 1 Blast 4 | . . . . . . . . . . . . . . . . 4 . . . . . . . . . . . . . . . . Impale 1 | . . . . . . . . . . . . . . . . . . . . . 1 . . . . . . . . . . . Detonate 1 | . . . . . . . . . . . . . . . . . . . . . . . . . . 1 . . . . . . Melee Attacks 82 | . . . . . . . . . . . . . . . . 8 . . . . 18 . . 8 2 . 4 . 7 28 4 3 Kinetic 11 | . . . . . . . . . . . . . . . . . . . . . . . . . . . . . 7 1 . 3 Impact . | . . . . . . . . . . . . . . . . . . . . . . . . . . . . . . . . . Slashing 31 | . . . . . . . . . . . . . . . . . . . . . . . . . . . . . . 27 4 . Piercing 40 | . . . . . . . . . . . . . . . . 8 . . . . 18 . . 8 2 . 4 . . . . . Sneak Attacks 7 | . . . . . . . . . . . . . . . . . . . . . 1 . . . . . 2 . . 2 1 1 Combat Hostiles 2 | . . . . . . . . . . . . . . . . . . . . . . . . . . . . . . 1 . 1 Follow-up Attacks . | . . . . . . . . . . . . . . . . . . . . . . . . . . . . . . . . . Damage Inflicted 88628 | 122 937 588 2098 215 2459 680 578 814 . 296 971 1980 791 1662 5681 4455 . 58 . 295 9488 498 883 . 534 5059 6281 2755 3161 13581 12784 8924 Guns 7222 | 122 937 588 1763 215 1786 522 497 579 . 213 . . . . . . . . . . . . . . . . . . . . . . Cannons 72325 | . . . . . 41 158 81 21 . 83 957 1866 718 1662 3730 4237 . 58 . 295 9280 498 868 . 288 4571 6120 2741 2889 12326 10262 8575 Explosions 6015 | . . . 287 . 630 . . 214 . . . . . . 1788 . . . . . 36 . . . 246 488 . 14 . . 2312 . Melee 2274 | . . . . . . . . . . . . . . . . 43 . . . . 130 . . . . . 161 . 272 1255 210 203 Ramming 744 | . . . . . 2 . . . . . 14 114 73 . 163 175 . . . . 42 . 15 . . . . . . . . 146 Kinetic 61336 | 61 374 9 1018 215 1786 522 497 579 . 213 957 1866 718 1662 2986 85 . 58 . 295 8827 498 868 . . 3130 1019 1455 272 12326 10262 8778 Thermal 17158 | 61 563 579 793 . 41 158 81 21 . 83 . . . . 782 4152 . . . . 489 . . . . 79 5101 1286 2889 . . . Explosive 4012 | . . . 287 . 630 . . 214 . . . . . . . . . . . . . . . . 246 309 . 14 . . 2312 . Electromagnetic 1850 | . . . . . . . . . . . . . . . 1750 . . . . . . . . . . 100 . . . . . . Impact . | . . . . . . . . . . . . . . . . . . . . . . . . . . . . . . . . . Slashing 1465 | . . . . . . . . . . . . . . . . . . . . . . . . . . . . . . 1255 210 . Piercing 334 | . . . . . . . . . . . . . . . . 43 . . . . 130 . . . . . 161 . . . . . Entropic 1729 | . . . . . . . . . . . . . . . . . . . . . . . . . 288 1441 . . . . . . Highest Corruption 8 | . . . . . 2 3 3 3 3 3 . 2 2 2 4 4 . . . . 4 4 6 6 . 1 7 5 6 8 . . Average Corruption 3 | . . . . . 2 2 3 3 3 3 . 2 2 1 2 1 . . . . 1 4 5 5 . 1 3 4 5 7 . . Corruption Purged 13 | . . . . . . . . . . . . . . 2 . 4 . . . . 1 . . 2 . . 4 . . . . . Corruption Blocked 56 | . . . . . . . . . . . . . . . . . . . . . . . . . . . . 54 . . . 2 Effects 374 | . . . . . 5 16 21 11 1 15 . . 3 5 9 24 . . . . 12 19 38 3 . 3 52 6 51 80 . . Message Errors 91 | . . . . . 2 3 7 4 . 4 . . . . 3 7 . . . . 7 5 10 1 . 1 9 1 15 12 . . Matter Fused 96 | . . . . . 1 7 7 2 . 3 . . 2 1 3 6 . . . . 3 1 12 . . . 19 3 10 16 . . Heat Flow Errors 51 | . . . . . 1 1 3 3 1 . . . . . 2 5 . . . . . 3 7 1 . . 4 1 9 10 . . Energy Discharges 55 | . . . . . 1 1 1 . . 6 . . 1 2 1 3 . . . . . 4 4 . . 1 7 1 6 16 . . Parts Rejected 3 | . . . . . . . . . . . . . . . . . . . . . . . . . . . . . 1 2 . . Data Loss (minor) 46 | . . . . . . 2 2 1 . 1 . . . 1 . 1 . . . . 1 5 3 . . 1 9 . 6 13 . . Data Loss (major) 19 | . . . . . . 1 1 1 . 1 . . . 1 . 1 . . . . 1 1 2 1 . . 1 . 3 4 . . Alerts 8 | . . . . . . 1 . . . . . . . . . . . . . . . . . . . . 1 . 1 5 . . Weapon Failures 5 | . . . . . . . . . . . . . . . . 1 . . . . . . . . . . 2 . . 2 . . Overload Shots . | . . . . . . . . . . . . . . . . . . . . . . . . . . . . . . . . . Overflow Damage 8346 | . . . . . 29 . . 28 . . . 3 6 31 97 79 . . . 22 576 1 96 . 28 783 2027 713 883 1117 1435 392 Projectiles 7566 | . . . . . . . . . . . . . 6 31 47 66 . . . 22 530 1 96 . . 766 1936 713 883 700 1377 392 Explosions 196 | . . . . . 29 . . 28 . . . . . . 39 . . . . . . . . . 28 17 . . . . 55 . Melee 584 | . . . . . . . . . . . . 3 . . 11 13 . . . . 46 . . . . . 91 . . 417 3 . Knockbacks 253 | . . . . . . . . . . . 7 6 3 10 36 . . . . . 58 2 1 . . 8 4 9 . 42 41 26 Impact 2 | . . . . . . . . . . . . . . . 1 . . . . . . . . . . . . . . . . 1 Kinetic 229 | . . . . . . . . . . . 7 6 3 10 31 . . . . . 54 2 1 . . 8 4 8 . 42 31 22 Secondary 22 | . . . . . . . . . . . . . . . 4 . . . . . 4 . . . . . . 1 . . 10 3 Self-Inflicted Damage 187 | . . . . . 14 . . . . . . . . . . 59 . . . . . . 7 . . 37 . 70 . . . . Shots 6 | . . . . . 1 . . . . . . . . . . 2 . . . . . . . . . 2 . 1 . . . . Rammed 31 | . . . . . 1 . . . . . 1 5 6 . 8 1 . . . . 2 . 1 . . . . . . . . 6 Targets Rammed 32 | . . . . . 1 . . . . . 1 5 6 . 8 2 . . . . 2 . 1 . . . . . . . . 6 Kicked . | . . . . . . . . . . . . . . . . . . . . . . . . . . . . . . . . . Crushed 1 | . . . . . . . . . . . . . . . . 1 . . . . . . . . . . . . . . . . Highest Temperature 367 | 60 54 70 111 72 83 254 249 189 227 144 308 55 28 24 160 225 . 7 . . 12 246 215 367 . . 249 146 198 230 . 72 Average Temperature 42 | 30 15 29 24 18 19 53 76 54 123 46 110 16 8 8 30 71 . 7 . . 6 101 83 160 . . 59 15 54 84 . 33 Received Heat Transfer 2370 | . 114 75 252 . 202 63 . . . 51 33 99 62 33 225 45 . . . . 317 13 80 . . 53 6 18 66 110 278 175 Effects 2 | . . . . . . . . . . . 1 . . . . . . . . . . . . 1 . . . . . . . . Shutdowns 1 | . . . . . . . . . . . . . . . . . . . . . . . . 1 . . . . . . . . Energy Bleed 1 | . . . . . . . . . . . 1 . . . . . . . . . . . . . . . . . . . . . Siege Activations 20 | . . . . . . . . . . . . . . . . . . . . . 6 1 3 . . . . . . 2 3 5 Total Turns 340 | . . . . . . . . . . . . . . . . . . . . . 97 11 56 . . . . . . 6 85 85 Longest Duration 54 | . . . . . . . . . . . . . . . . . . . . . 32 11 34 . . . . . . 5 54 34 Robots Corrupted 1 | . . . . . . . . . . . . . . . 1 . . . . . . . . . . . . . . . . . Combat Hostiles 1 | . . . . . . . . . . . . . . . 1 . . . . . . . . . . . . . . . . . Parts Fried 7 | . . . . . . . . . . . . 1 . . 6 . . . . . . . . . . . . . . . . . Impact Corruptions 9 | . . . . . . . . . . . . 1 . . 1 . . . . . 1 . . . . . . . . . 5 1 Robots Melted 3 | . . . . . . . . . . . . . . . . 3 . . . . . . . . . . . . . . . . Combat Hostiles 2 | . . . . . . . . . . . . . . . . 2 . . . . . . . . . . . . . . . . Parts Melted 46 | . 1 6 1 . . 2 . . . . . . . . 6 24 . . . . . . . . . . 3 . 1 2 . . Heat Transferred 18140 | 185 1369 1443 1876 . 74 259 148 37 . 148 . . . . 2250 7285 . . . . 309 . . . . 75 1459 370 853 . . . Parts Sabotaged . | . . . . . . . . . . . . . . . . . . . . . . . . . . . . . . . . . Parts Stolen . | . . . . . . . . . . . . . . . . . . . . . . . . . . . . . . . . . Parts Stripped . | . . . . . . . . . . . . . . . . . . . . . . . . . . . . . . . . . Power Chain Reactions 2 | . . . . . . . . . . . . . . . 1 1 . . . . . . . . . . . . . . . . Missiles Intercepted . | . . . . . . . . . . . . . . . . . . . . . . . . . . . . . . . . . Alert | -11 -10 -10 -9 -9 -8 -7 -7 -7 -7 -6 -6 -6 -6 -6 -6 -5 -5 -5 -5 -4 -4 -4 -4 -4 -3 -3 -3 -2 -2 -2 -1 -1 ------- Run | Scr Mat Min Mat Min Mat Fac Low Low Dat Pro Fac Ext Cet Arc Hub Fac Upp Upp Zhi Pro Fac Upp Upp War Pro Res Tes Res Qua Sec Acc Com Peak Influence 1402 | 25 292 140 517 199 353 77 . . . . 186 652 480 384 983 508 . . . . 960 . . . . 226 262 669 406 1140 1401 1402 Initial 896 | . 16 15 . 179 13 68 . . . . 54 89 229 184 . 452 . . . . 31 . . . . 6 69 114 312 122 657 896 Average 309 | 9 138 47 380 64 169 37 . . . . 88 349 368 59 191 271 . . . . 421 . . . . 94 162 425 288 650 873 1223 Maximum Alert Level 4 | . 1 . 2 . 1 . . . . . . 2 2 1 3 2 . . . . 3 . . . . 1 1 2 2 4 4 4 Low Security (%) 48 | 100 87 100 5 100 61 100 . . . . 100 14 . 90 62 37 . . . . 20 . . . . 89 65 13 7 2 . . Level 1 24 | . 12 . 46 . 38 . . . . . . 44 63 9 30 37 . . . . 32 . . . . 10 34 24 90 11 . . Level 2 16 | . . . 48 . . . . . . . . 41 36 . . 25 . . . . 36 . . . . . . 62 2 48 29 . Level 3 6 | . . . . . . . . . . . . . . . 6 . . . . . 10 . . . . . . . . 35 50 9 Level 4 4 | . . . . . . . . . . . . . . . . . . . . . . . . . . . . . . 2 20 90 Level 5 . | . . . . . . . . . . . . . . . . . . . . . . . . . . . . . . . . . High Security . | . . . . . . . . . . . . . . . . . . . . . . . . . . . . . . . . . Max Security . | . . . . . . . . . . . . . . . . . . . . . . . . . . . . . . . . . Squads Dispatched 104 | . 2 . 2 1 3 1 . . . . 4 1 . . 14 16 . . . . 13 . . . . 3 9 2 5 11 8 9 Investigation 18 | . 1 . 1 . . . . . . . 2 1 . . . 5 . . . . 5 . . . . . . 1 . . 1 1 Extermination 35 | . . . . . . 1 . . . . 1 . . . 2 6 . . . . 5 . . . . 1 5 . 3 6 2 3 Reinforcement 33 | . 1 . 1 1 2 . . . . . 1 . . . 7 3 . . . . 2 . . . . 2 . 1 1 5 4 2 Assault 10 | . . . . . . . . . . . . . . . 3 1 . . . . 1 . . . . . . . 1 . 1 3 Garrison 8 | . . . . . 1 . . . . . . . . . 2 1 . . . . . . . . . . 4 . . . . . Intercept . | . . . . . . . . . . . . . . . . . . . . . . . . . . . . . . . . . Searches Triggered . | . . . . . . . . . . . . . . . . . . . . . . . . . . . . . . . . . Data Miner Redirects 16 | . . . . . . . . . . . 1 1 . . 1 4 . . . . 4 . . . . . . . . . 1 4 Construction Impeded 3 | . . . . 1 . . . . . . . . . . 1 . . . . . 1 . . . . . . . . . . . Haulers Reinforced 9 | . . . . . . . . . . . . . . . 2 2 . . . . . . . . . 1 . 1 . 1 2 . Active Scanning Responses . | . . . . . . . . . . . . . . . . . . . . . . . . . . . . . . . . . Cargo Convoy Interrupts 1 | . . . . . . . . . . . . . . . . . . . . . 1 . . . . . . . . . . . Stealth | -11 -10 -10 -9 -9 -8 -7 -7 -7 -7 -6 -6 -6 -6 -6 -6 -5 -5 -5 -5 -4 -4 -4 -4 -4 -3 -3 -3 -2 -2 -2 -1 -1 --------- Run | Scr Mat Min Mat Min Mat Fac Low Low Dat Pro Fac Ext Cet Arc Hub Fac Upp Upp Zhi Pro Fac Upp Upp War Pro Res Tes Res Qua Sec Acc Com Distress Signals 20 | . 1 . 2 . 4 . . . . . . . 2 . 1 1 . . . . 2 . . . . 1 1 2 . 1 2 . Communications Jammed 95 | . . . . . . . . . . . 7 . . . 3 . . . . . 3 . . . . 3 1 30 10 11 27 . Distress Signals 70 | . . . . . . . . . . . . . . . . . . . . . 3 . . . . 2 . 30 10 2 23 . Times Spotted 619 | . 24 5 47 2 38 3 5 8 . 5 9 22 14 16 50 33 . . . 2 51 4 7 15 4 12 28 22 19 71 59 44 Peak Tracking Total 12 | . 5 3 8 1 9 1 4 4 . 3 3 6 5 2 10 9 . . . 2 3 3 4 12 3 2 4 5 3 5 11 6 Tactical Retreats 38 | . . . 1 . . . . . . . . . . . 6 3 . . . . 3 . . . . . 1 5 2 10 3 4 Traps | -11 -10 -10 -9 -9 -8 -7 -7 -7 -7 -6 -6 -6 -6 -6 -6 -5 -5 -5 -5 -4 -4 -4 -4 -4 -3 -3 -3 -2 -2 -2 -1 -1 ------- Run | Scr Mat Min Mat Min Mat Fac Low Low Dat Pro Fac Ext Cet Arc Hub Fac Upp Upp Zhi Pro Fac Upp Upp War Pro Res Tes Res Qua Sec Acc Com Traps Triggered 16 | . . . 2 . 1 . . . . . 1 2 . . . 2 . . . . 1 . . 1 . . 1 . 2 1 . 2 Indirectly . | . . . . . . . . . . . . . . . . . . . . . . . . . . . . . . . . . Trap Hack Attempts . | . . . . . . . . . . . . . . . . . . . . . . . . . . . . . . . . . Triggered . | . . . . . . . . . . . . . . . . . . . . . . . . . . . . . . . . . Disarmed . | . . . . . . . . . . . . . . . . . . . . . . . . . . . . . . . . . Reprogrammed . | . . . . . . . . . . . . . . . . . . . . . . . . . . . . . . . . . Reused . | . . . . . . . . . . . . . . . . . . . . . . . . . . . . . . . . . Traps Extracted . | . . . . . . . . . . . . . . . . . . . . . . . . . . . . . . . . . Installed . | . . . . . . . . . . . . . . . . . . . . . . . . . . . . . . . . . Triggered 16 | . . . . . . . . 2 . . . 1 . . . . . . . . 1 . . 12 . . . . . . . . Machines | -11 -10 -10 -9 -9 -8 -7 -7 -7 -7 -6 -6 -6 -6 -6 -6 -5 -5 -5 -5 -4 -4 -4 -4 -4 -3 -3 -3 -2 -2 -2 -1 -1 ---------- Run | Scr Mat Min Mat Min Mat Fac Low Low Dat Pro Fac Ext Cet Arc Hub Fac Upp Upp Zhi Pro Fac Upp Upp War Pro Res Tes Res Qua Sec Acc Com Machines Disabled 70 | . 3 . . . 5 . . . . . . 1 2 2 14 3 . . . . 7 . . . . 2 4 2 9 13 2 1 Max in Single Turn 14 | . 1 . . . 1 . . . . . . . . 1 14 1 . . . . 4 . . . . 1 2 1 1 1 1 1 Garrison Access 8 | . . . . . . 1 . . . . 1 . . . 1 . . . . . . . . . . 1 . . 1 1 2 . Network Hub 2 | . . . . . . . . . . . . . . . 2 . . . . . . . . . . . . . . . . . Machines Sabotaged . | . . . . . . . . . . . . . . . . . . . . . . . . . . . . . . . . . Overloaded Fab Kills . | . . . . . . . . . . . . . . . . . . . . . . . . . . . . . . . . . Hacking | -11 -10 -10 -9 -9 -8 -7 -7 -7 -7 -6 -6 -6 -6 -6 -6 -5 -5 -5 -5 -4 -4 -4 -4 -4 -3 -3 -3 -2 -2 -2 -1 -1 --------- Run | Scr Mat Min Mat Min Mat Fac Low Low Dat Pro Fac Ext Cet Arc Hub Fac Upp Upp Zhi Pro Fac Upp Upp War Pro Res Tes Res Qua Sec Acc Com Machines Accessed 157 | . 7 . 9 . 8 5 . . 3 1 10 4 . . 7 13 . . 4 . 11 . 1 2 . 6 8 2 12 21 10 13 Terminals 116 | . 6 . 9 . 7 4 . . . 1 6 4 . . 7 8 . . . . 7 . . . . 5 6 1 10 17 6 12 Fabricators 11 | . . . . . . . . . . . 2 . . . . 3 . . . . 4 . . . . . . 1 . . 1 . Repair Stations 7 | . 1 . . . . . . . . . 1 . . . . 2 . . . . . . . . . . 1 . . 1 . 1 Recycling Units 2 | . . . . . 1 . . . . . . . . . . . . . . . . . . . . . . . . . 1 . Scanalyzers 5 | . . . . . . . . . . . . . . . . . . . . . . . . . . . 1 . 2 2 . . Garrison Access 6 | . . . . . . 1 . . . . 1 . . . . . . . . . . . . . . 1 . . . 1 2 . Total Hacks 707 | . 19 . 23 . 21 12 . . 24 1 34 9 . . 33 82 . . 17 . 54 . 1 2 . 46 44 14 72 103 48 48 Successful 372 | . 10 . 15 . 14 6 . . 24 1 21 4 . . 21 51 . . 17 . 31 . 1 2 . 20 17 6 31 45 20 15 Failed 334 | . 9 . 8 . 7 5 . . . . 13 5 . . 12 31 . . . . 23 . . . . 26 27 8 41 58 28 33 Catastrophic 48 | . . . . . . . . . . . 3 1 . . 1 3 . . . . 1 . . . . 6 5 . 9 8 2 9 Database Lockouts 1 | . . . . . . 1 . . . . . . . . . . . . . . . . . . . . . . . . . . Manual 292 | . 15 . 16 . 19 8 . . . . 14 3 1 . 22 41 . . . . 15 . . 1 . 18 12 3 23 34 21 26 Terminals 563 | . 17 . 23 . 20 11 . . . 1 25 9 . . 33 61 . . . . 42 . . . . 44 35 8 66 85 39 44 Fabricators 38 | . . . . . . . . . . . 5 . . . . 12 . . . . 12 . . . . . . 6 . . 3 . Repair Stations 27 | . 2 . . . . . . . . . 3 . . . . 9 . . . . . . . . . . 5 . . 4 . 4 Recycling Units 3 | . . . . . 1 . . . . . . . . . . . . . . . . . . . . . . . . . 2 . Scanalyzers 23 | . . . . . . . . . . . . . . . . . . . . . . . . . . . 4 . 6 13 . . Garrison Access 9 | . . . . . . 1 . . . . 1 . . . . . . . . . . . . . . 2 . . . 1 4 . Terminal Hacks 250 | . 5 . 11 . 9 5 . . 24 1 11 4 . . 16 27 . . 17 . 19 . 1 2 . 15 9 3 21 26 11 13 Record 9 | . . . . . . . . . 2 1 . . . . . . . . 5 . . . . . . . . . 1 . . . Part Schematic 27 | . . . . . . . . . 12 . . . . . 1 2 . . 4 . 3 . . . . 2 1 . 1 1 . . Robot Schematic 7 | . . . . . . . . . 7 . . . . . . . . . . . . . . . . . . . . . . . Robot Analysis 29 | . 3 . 4 . 2 1 . . . . 3 . . . . 4 . . 4 . 2 . . . . . 1 . 1 2 1 1 Prototype ID Bank 34 | . 1 . 3 . 1 1 . . 3 . 2 2 . . 1 1 . . 4 . 2 . . . . 2 1 1 3 5 1 . Open Door 9 | . . . . . . . . . . . . . . . . . . . . . . . 1 2 . . . . . 5 . 1 Level Access Points 1 | . . . . . . . . . . . . . . . 1 . . . . . . . . . . . . . . . . . Branch Access Points 7 | . . . 1 . 1 . . . . . 1 . . . . 1 . . . . 1 . . . . 1 . . . . 1 . Emergency Access Points 1 | . . . . . . . . . . . . . . . 1 . . . . . . . . . . . . . . . . . Machine Index 4 | . . . . . . . . . . . 1 . . . . . . . . . . . . . . 1 . . . 1 1 . Terminal Index 15 | . 1 . 1 . 1 1 . . . . 1 . . . 1 1 . . . . 2 . . . . 1 1 . 2 . 1 1 Fabricator Index 6 | . . . . . . . . . . . 1 . . . . 1 . . . . 1 . . . . 1 . 1 1 . . . Repair Station Index 2 | . . . . . . . . . . . . . . . . 1 . . . . . . . . . 1 . . . . . . Garrison Index 2 | . . . . . . . . . . . . . . . . 1 . . . . . . . . . . . . . . 1 . Alert Level 23 | . . . . . 1 . . . . . . . . . 4 3 . . . . 1 . . . . 2 2 . 3 2 1 4 Unreport Threat 28 | . . . . . 2 1 . . . . . 1 . . 4 3 . . . . 4 . . . . 2 . . 2 5 3 1 Locate Traps 15 | . . . 2 . . . . . . . 1 1 . . 1 3 . . . . 2 . . . . . . . 3 . . 2 Patrol Status 1 | . . . . . . . . . . . 1 . . . . . . . . . . . . . . . . . . . . . Transport Status 1 | . . . . . . . . . . . . . . . . . . . . . . . . . . . 1 . . . . . Recall Investigation 1 | . . . . . . . . . . . . . . . . 1 . . . . . . . . . . . . . . . . Recall Reinforcements 1 | . . . . . . . . . . . . . . . . . . . . . . . . . . . . . . 1 . . Hauler Manifests 6 | . . . . . . 1 . . . . . . . . . 1 . . . . . . . . . 1 1 . 1 1 . . Registered Prototypes 2 | . . . . . . . . . . . . . . . . 1 . . . . . . . . . . . . . . . 1 Zone Layout 17 | . . . . . 1 . . . . . . . . . 2 3 . . . . 1 . . . . 1 1 1 3 3 1 . Disengage Seal 2 | . . . . . . . . . . . . . . . . . . . . . . . . . . . . . . . . 2 Fabricator Hacks 28 | . . . . . . . . . . . 4 . . . . 11 . . . . 9 . . . . . . 2 . . 2 . Network Status 1 | . . . . . . . . . . . . . . . . 1 . . . . . . . . . . . . . . . . Load Schematic 11 | . . . . . . . . . . . 1 . . . . 4 . . . . 4 . . . . . . 1 . . 1 . Build 16 | . . . . . . . . . . . 3 . . . . 6 . . . . 5 . . . . . . 1 . . 1 . Repair Station Hacks 18 | . 2 . . . . . . . . . 3 . . . . 6 . . . . . . . . . . 4 . . 2 . 1 Scan Component 10 | . 1 . . . . . . . . . 2 . . . . 3 . . . . . . . . . . 2 . . 1 . 1 Repair 8 | . 1 . . . . . . . . . 1 . . . . 3 . . . . . . . . . . 2 . . 1 . . Recycling Unit Hacks . | . . . . . . . . . . . . . . . . . . . . . . . . . . . . . . . . . Scanalyzer 13 | . . . . . . . . . . . . . . . . . . . . . . . . . . . 1 . 4 8 . . Insert Component 12 | . . . . . . . . . . . . . . . . . . . . . . . . . . . 1 . 3 8 . . Analyze 1 | . . . . . . . . . . . . . . . . . . . . . . . . . . . . . 1 . . . Garrison Access Hacks 6 | . . . . . . 1 . . . . 1 . . . . . . . . . . . . . . 1 . . . 1 2 . Seal Access 6 | . . . . . . 1 . . . . 1 . . . . . . . . . . . . . . 1 . . . 1 2 . Unauthorized Hacks 57 | . 3 . 4 . 5 . . . . . 2 . . . 5 7 . . . . 3 . . . . 4 3 1 6 8 5 1 Terminals 54 | . 3 . 4 . 4 . . . . . 2 . . . 5 7 . . . . 2 . . . . 4 3 1 6 8 4 1 Track 10 | . . . . . . . . . . . . . . . 3 2 . . . . . . . . . 1 1 . 2 1 . . Assimilate 13 | . . . 3 . 2 . . . . . . . . . . . . . . . 1 . . . . . 1 . 1 5 . . Botnet 23 | . 2 . . . 1 . . . . . 2 . . . 1 4 . . . . 1 . . . . 2 1 1 3 2 3 . Detonate 1 | . . . . . . . . . . . . . . . 1 . . . . . . . . . . . . . . . . . Disrupt 1 | . . . . . . . . . . . . . . . . . . . . . . . . . . . . . . . . 1 Operators 6 | . 1 . 1 . 1 . . . . . . . . . . 1 . . . . . . . . . 1 . . . . 1 . Fabricators 1 | . . . . . . . . . . . . . . . . . . . . . 1 . . . . . . . . . . . Liberate 1 | . . . . . . . . . . . . . . . . . . . . . 1 . . . . . . . . . . . Repair Stations . | . . . . . . . . . . . . . . . . . . . . . . . . . . . . . . . . . Recycling Units 2 | . . . . . 1 . . . . . . . . . . . . . . . . . . . . . . . . . 1 . Mask 2 | . . . . . 1 . . . . . . . . . . . . . . . . . . . . . . . . . 1 . Scanalyzers . | . . . . . . . . . . . . . . . . . . . . . . . . . . . . . . . . . Garrison Access . | . . . . . . . . . . . . . . . . . . . . . . . . . . . . . . . . . Data Cores Recovered 4 | . . . . . . . . . . . . . . . 2 . . . . . . . . . . . . . . 1 . 1 Used 1 | . . . . . . . . . . . . . . . 1 . . . . . . . . . . . . . . . . . Hacking Detections 114 | . 6 . 8 . 5 4 . . . 1 9 3 . . 6 11 . . . . 11 . . . . 5 6 1 9 12 7 10 Full Trace Events 15 | . 1 . . . . . . . . . 2 . . . . 5 . . . . 5 . . . . . . 1 . . 1 . Feedback Events 1 | . . . . . . . . . . . . . . . . 1 . . . . . . . . . . . . . . . . Corruption 1 | . . . . . . . . . . . . . . . . 1 . . . . . . . . . . . . . . . . Feedback Blocked . | . . . . . . . . . . . . . . . . . . . . . . . . . . . . . . . . . Robot Schematics Acquired 7 | . . . . . . . . . 7 . . . . . . . . . . . . . . . . . . . . . . . Robots Built 2 | . . . . . . . . . . . 2 . . . . . . . . . . . . . . . . . . . . . Authchips . | . . . . . . . . . . . . . . . . . . . . . . . . . . . . . . . . . Time 116 | . . . . . . . . . . . 116 . . . . . . . . . . . . . . . . . . . . . Total Robot Build Rating 6 | . . . . . . . . . . . 6 . . . . . . . . . . . . . . . . . . . . . Part Schematics Acquired 28 | . . . . . . . . . 12 . . . . . 1 2 . . 4 . 3 . . . . 2 1 . 2 1 . . Parts Built 20 | . . . . . . . . . . . 4 . . . . 7 . . . . 7 . . . . . . 1 . . 1 . Authchips 1 | . . . . . . . . . . . . . . . . 1 . . . . . . . . . . . . . . . . Time 1665 | . . . . . . . . . . . 170 . . . . 811 . . . . 505 . . . . . . 111 . . 68 . Total Part Build Rating 151 | . . . . . . . . . . . 26 . . . . 49 . . . . 59 . . . . . . 9 . . 8 . Parts Repaired 8 | . 1 . . . . . . . . . 1 . . . . 3 . . . . . . . . . . 2 . . 1 . . Time 396 | . 38 . . . . . . . . . 22 . . . . 126 . . . . . . . . . . 170 . . 40 . . Parts Recycled . | . . . . . . . . . . . . . . . . . . . . . . . . . . . . . . . . . Recycled Matter . | . . . . . . . . . . . . . . . . . . . . . . . . . . . . . . . . . Retrieved Matter . | . . . . . . . . . . . . . . . . . . . . . . . . . . . . . . . . . Retrieved Components . | . . . . . . . . . . . . . . . . . . . . . . . . . . . . . . . . . Parts Scanalyzed 2 | . . . . . . . . . . . . . . . . . . . . . . . . . . . 1 . 1 . . . Part Schematics Acquired 1 | . . . . . . . . . . . . . . . . . . . . . . . . . . . . . 1 . . . Parts Damaged . | . . . . . . . . . . . . . . . . . . . . . . . . . . . . . . . . . Bothacking | -11 -10 -10 -9 -9 -8 -7 -7 -7 -7 -6 -6 -6 -6 -6 -6 -5 -5 -5 -5 -4 -4 -4 -4 -4 -3 -3 -3 -2 -2 -2 -1 -1 ------------ Run | Scr Mat Min Mat Min Mat Fac Low Low Dat Pro Fac Ext Cet Arc Hub Fac Upp Upp Zhi Pro Fac Upp Upp War Pro Res Tes Res Qua Sec Acc Com Used RIF Installer . | . . . . . . . . . . . . . . . . . . . . . . . . . . . . . . . . . Robots Hacked . | . . . . . . . . . . . . . . . . . . . . . . . . . . . . . . . . . Non-combat . | . . . . . . . . . . . . . . . . . . . . . . . . . . . . . . . . . Combat . | . . . . . . . . . . . . . . . . . . . . . . . . . . . . . . . . . Robot Hacks Applied . | . . . . . . . . . . . . . . . . . . . . . . . . . . . . . . . . . Relay Couplers Released 9 | . . . . . . . . . . . . . . . 3 . . . . . . . . . . . . 3 1 2 . . Machine Destruction 6 | . . . . . . . . . . . . . . . 3 . . . . . . . . . . . . . 1 2 . . Programmers 3 | . . . . . . . . . . . . . . . . . . . . . . . . . . . . 3 . . . . Fabnet Peak Effective % . | . . . . . . . . . . . . . . . . . . . . . . . . . . . . . . . . . Robots Rewired 13 | . . . . . . . . . . . . 7 . . . . . . . . . . . 5 . . . . 1 . . . Allies Hacked 2 | . . . . . . . . . . . . . . . . . . . . . 2 . . . . . . . . . . . Hacks Repelled 1 | . . . . . . . . . . . . . . . . . . . . . . . . . . . . . . . . 1 Allies | -11 -10 -10 -9 -9 -8 -7 -7 -7 -7 -6 -6 -6 -6 -6 -6 -5 -5 -5 -5 -4 -4 -4 -4 -4 -3 -3 -3 -2 -2 -2 -1 -1 -------- Run | Scr Mat Min Mat Min Mat Fac Low Low Dat Pro Fac Ext Cet Arc Hub Fac Upp Upp Zhi Pro Fac Upp Upp War Pro Res Tes Res Qua Sec Acc Com Total Allies 35 | . . . 1 3 2 . . . . 1 2 12 . . . . . . . . 4 . . 5 . . 1 . 1 3 . . Largest Group 8 | . . . 1 4 4 2 2 1 1 2 3 8 5 . . . . . . . 4 . . 5 4 3 1 1 1 2 1 . Highest-Rated Group 402 | . . . 10 50 50 20 19 9 9 105 138 402 276 . . . . . . . 167 . . 291 242 186 45 45 65 45 45 . Highest-Rated Ally 159 | . . . 10 16 16 10 10 9 9 96 96 159 159 . . . . . . . 47 . . 65 65 65 45 45 65 45 45 . Total Orders 70 | . . . 2 2 11 6 4 2 1 6 . 3 . . . . . . . . 10 . . 2 . 5 4 2 . 7 3 . STAY 39 | . . . 1 1 6 3 2 1 1 3 . 2 . . . . . . . . 6 . . 1 . 3 2 1 . 4 2 . FOLLOW 31 | . . . 1 1 5 3 2 1 . 3 . 1 . . . . . . . . 4 . . 1 . 2 2 1 . 3 1 . Ally Attacks 238 | . . . . 5 15 . . . . 13 17 107 28 . . . . . . . 23 . . 1 14 15 . . . . . . Total Damage 6836 | . . . . 42 159 . . . . 519 412 3163 822 . . . . . . . 563 . . 37 664 455 . . . . . . Kills 42 | . . . . 1 1 . . . . 5 3 18 6 . . . . . . . 3 . . . 4 1 . . . . . . Allies Corrupted 1 | . . . . . . . . . . . . . . . . . . . . . 1 . . . . . . . . . . . Allies Melted 1 | . . . . . . . . . . . . . . . . . . . . . . . . 1 . . . . . . . . Intel | -11 -10 -10 -9 -9 -8 -7 -7 -7 -7 -6 -6 -6 -6 -6 -6 -5 -5 -5 -5 -4 -4 -4 -4 -4 -3 -3 -3 -2 -2 -2 -1 -1 ------- Run | Scr Mat Min Mat Min Mat Fac Low Low Dat Pro Fac Ext Cet Arc Hub Fac Upp Upp Zhi Pro Fac Upp Upp War Pro Res Tes Res Qua Sec Acc Com Robot Analysis Total 29 | . 3 . 4 . 2 1 . . . . 3 . . . . 4 . . 4 . 2 . . . . . 1 . 1 2 1 1 Derelict Logs Recovered 12 | . . 1 . 2 . . 2 1 . 1 . . . . . . 1 1 . 2 . 1 . . . . . . . . . . Drone Launches . | . . . . . . . . . . . . . . . . . . . . . . . . . . . . . . . . . Drone Recoveries . | . . . . . . . . . . . . . . . . . . . . . . . . . . . . . . . . . Exploration | -11 -10 -10 -9 -9 -8 -7 -7 -7 -7 -6 -6 -6 -6 -6 -6 -5 -5 -5 -5 -4 -4 -4 -4 -4 -3 -3 -3 -2 -2 -2 -1 -1 ------------- Run | Scr Mat Min Mat Min Mat Fac Low Low Dat Pro Fac Ext Cet Arc Hub Fac Upp Upp Zhi Pro Fac Upp Upp War Pro Res Tes Res Qua Sec Acc Com Turns Passed 40552 | 134 1251 829 2082 1352 1794 1144 1013 1135 61 734 1097 989 283 3704 1059 2577 269 280 86 592 2214 974 1372 1492 469 1288 2413 599 1673 2908 1462 1223 Spaces Moved 30566 | 93 752 682 1149 722 942 603 1134 1215 78 726 915 857 147 497 849 2874 450 534 147 870 1557 446 519 678 354 679 1615 724 1838 3325 1272 1323 Core 278 | 1 . . . . . . . . . . . . . 277 . . . . . . . . . . . . . . . . . . Treads 14743 | . 1 . 82 1 . 504 1134 764 . . 296 857 114 209 849 2874 450 534 147 870 1557 20 . . . 79 994 . 1 535 548 1323 Legs 3786 | . . . . . . . . 451 78 725 . . . . . . . . . . . . . . . 255 . . 1539 131 607 . Wheels 4354 | 92 751 682 1067 721 942 99 . . . . . . . . . . . . . . . . . . . . . . . . . . Hover 5184 | . . . . . . . . . . 1 401 . 33 11 . . . . . . . 426 519 603 . 309 . 109 . 2655 117 . Flight 2217 | . . . . . . . . . . . 218 . . . . . . . . . . . . 75 354 36 621 615 298 . . . Fastest Speed 36 | 50 90 105 110 120 115 75 75 75 75 64 64 64 52 52 52 52 52 52 52 52 52 187 214 123 123 81 52 36 36 36 56 56 Average Speed 90 | 89 102 108 127 125 121 82 78 81 75 76 86 64 61 699 59 52 52 52 52 52 86 212 214 203 123 118 80 41 36 52 77 56 Slowest Speed 1200 | 100 240 140 240 240 130 145 112 112 112 112 101 64 64 1200 128 52 52 52 52 52 187 214 214 214 123 123 123 52 36 78 203 56 Overloaded Moves . | . . . . . . . . . . . . . . . . . . . . . . . . . . . . . . . . . Propulsion Burnouts . | . . . . . . . . . . . . . . . . . . . . . . . . . . . . . . . . . Robots Hopped 14 | . . . . . . . . . . . . . . . . . . . . . . . . . . . 12 1 . . . 1 Cave-ins Triggered . | . . . . . . . . . . . . . . . . . . . . . . . . . . . . . . . . . Spacefolds 2 | . . . . . . . . . . . . . . . . . . . . . . . . . . . . . . 2 . . Exploration Rate (%) 62 | 6 88 95 85 97 73 12 91 83 68 78 20 85 48 96 62 43 66 65 60 85 31 53 68 80 48 18 92 22 95 80 27 43 Regions Visited 32 Branch Regions 22 Pre-discovered Areas 8 | . . . . 1 . . 1 1 1 1 . . . . . . . . 3 . . . . . . . . . . . . . Known Exits Taken 25 | . . . 1 1 . 1 1 1 1 1 1 . . . 1 1 1 1 1 1 1 1 1 1 1 1 1 1 1 1 1 . Unknown Exits Taken 7 | 1 1 1 . . 1 . . . . . . 1 1 1 . . . . . . . . . . . . . . . . . . Scrap Searched 17 | . . 1 . 1 . . 1 3 . 1 . . . . . . 1 1 . 2 . 1 4 . 1 . . . . . . . Spaces Dug 322 | . 1 . 7 3 19 . . 33 . . . . . . . 8 . . . 6 80 . 10 4 15 1 37 17 12 40 17 12 Terrain Destroyed 1235 | . 1 . 30 5 45 . 20 33 . . . . . . 295 29 . 3 . 10 218 . 36 4 15 76 70 84 22 99 114 26 Melee 38 | . . . . . . . . . . . . . . . . 7 . . . . 15 . . 4 2 . 2 . . 6 2 . Projectile 524 | . 1 . 8 5 17 . . . . . . . . . . 14 . 3 . 10 117 . 36 . . 18 68 41 22 93 45 26 AOE 673 | . . . 22 . 28 . 20 33 . . . . . . 295 8 . . . . 86 . . . 13 58 . 43 . . 67 . Terrain Rammed . | . . . . . . . . . . . . . . . . . . . . . . . . . . . . . . . . . Walls Destroyed . | . . . . . . . . . . . . . . . . . . . . . . . . . . . . . . . . . Machines Disabled . | . . . . . . . . . . . . . . . . . . . . . . . . . . . . . . . . . Actions | -11 -10 -10 -9 -9 -8 -7 -7 -7 -7 -6 -6 -6 -6 -6 -6 -5 -5 -5 -5 -4 -4 -4 -4 -4 -3 -3 -3 -2 -2 -2 -1 -1 --------- Run | Scr Mat Min Mat Min Mat Fac Low Low Dat Pro Fac Ext Cet Arc Hub Fac Upp Upp Zhi Pro Fac Upp Upp War Pro Res Tes Res Qua Sec Acc Com Total 41394 | 119 1139 720 1597 1136 1403 1223 1226 1333 79 876 1205 1251 326 692 1329 3888 484 534 155 1002 2251 464 730 780 380 1103 2606 974 2790 4243 1636 1720 Wait 8086 | 2 290 2 262 379 281 534 43 68 . 129 214 310 146 150 365 876 33 . 1 125 505 7 150 51 17 335 784 187 801 638 164 237 Move 30506 | 92 751 681 1148 721 941 602 1133 1214 77 725 914 856 146 496 848 2873 449 533 146 869 1556 445 518 677 353 678 1592 721 1837 3322 1271 1321 Hop 12 | . . . . . . . . . . . . . . . . . . . . . . . . . . . 10 1 . . . 1 Pick Up 191 | 6 20 2 20 1 10 7 1 1 . 1 15 . 1 4 10 21 . . 1 . 1 1 1 3 . 4 15 5 19 13 4 4 Fast Attach 130 | 7 3 1 5 . 7 4 . . . . 5 . 4 1 2 5 . . 3 . 7 . . 6 2 6 26 1 11 10 7 7 Attach 83 | . 2 1 2 1 4 13 7 6 1 . 5 . . 2 1 4 . . . . 5 . 1 2 . . 2 2 8 6 5 3 Detach 59 | . 1 . . . 1 16 6 7 . . 1 . 2 . . 1 . . . . 3 . 1 4 . 1 3 . 7 . 4 1 Swap 365 | 1 17 5 44 10 34 6 3 5 1 7 6 3 . 2 16 26 1 . 1 3 14 4 9 3 2 16 32 3 16 41 25 9 Drop 281 | . 11 3 26 6 20 17 2 . . . 20 . 6 4 9 23 1 . 3 . 7 1 2 8 1 8 40 5 28 11 9 10 Fire 1515 | 11 44 25 90 18 104 24 31 32 . 14 24 44 15 33 70 49 . 1 . 5 133 6 47 . 3 55 98 49 56 174 143 117 Melee 82 | . . . . . . . . . . . . . . . . 8 . . . . 18 . . 8 2 . 4 . 7 28 4 3 Ram 2 | . . . . . 1 . . . . . . . . . . . . . . . . . 1 . . . . . . . . . Kick . | . . . . . . . . . . . . . . . . . . . . . . . . . . . . . . . . . Crush 30 | . . . . . . . . . . . 1 5 6 . 8 2 . . . . 2 . . . . . . . . . . 6 Escape Stasis . | . . . . . . . . . . . . . . . . . . . . . . . . . . . . . . . . . Rewire 52 | . . . . . . . . . . . . 33 . . . . . . . . . . . 18 . . . . . . . 1 Trap . | . . . . . . . . . . . . . . . . . . . . . . . . . . . . . . . . . Miscellaneous . | . . . . . . . . . . . . . . . . . . . . . . . . . . . . . . . . . Route ------- -11/Scrapyard -10/Materials (discovered 4 exits: *Mat x2 / [*Min x2]) -10/Mines (discovered 2 exits: *Mat x2) -9/Materials (discovered 5 exits: *Mat x3 / *Min x2) -9/Mines (discovered 2 exits: *Mat x2) -8/Materials (discovered 3 exits: *Fac x2 / *Sto) -7/Factory (discovered 2 exits: *Fac / *Low) -7/Lower Caves -7/Lower Caves (discovered 2 exits: *Fac / *Dat) -7/Data Miner -6/Proximity Caves -6/Factory (discovered 4 exits: *Low x2 / *Ext x2) -6/Extension (discovered 2 exits: *Fac / *Cet) -6/Cetus -6/Archives (discovered 3 exits: *Fac / *Hub x2) -6/Hub_04(d) (discovered 4 exits: *Fac x4) -5/Factory (discovered 5 exits: *Fac x3 / *Upp x2) -5/Upper Caves -5/Upper Caves (discovered 2 exits: *Fac / *Zhi) -5/Zhirov -4/Proximity Caves -4/Factory (discovered 5 exits: *Res x2 / *Upp x2 / Arm) -4/Upper Caves -4/Upper Caves (discovered 2 exits: *Res / *War) -4/Warlord -3/Proximity Caves -3/Research (discovered 3 exits: Res / *Tes x2) -3/Testing -2/Research -2/Quarantine (discovered 2 exits: *Acc / *Sec) -2/Section 7 -1/Access -1/Command Free Derelict Territories History --------- Turn | Location | Event 27 | -11/Scrapyard | Discovered new exit (range 15) 135 | -11/Scrapyard | Entered Materials 314 | -10/Materials | Build established: Mutant 412 | -10/Materials | Discovered new exit (range 6) 749 | -10/Materials | Repaired Imp. Heat Sink 810 | -10/Materials | Discovered new exit (range 11) 1142 | -10/Materials | Discovered new exit (range 13) 1183 | -10/Materials | Discovered new exit (range 16) 1386 | -10/Materials | Entered Mines 1402 | -10/Mines | Met a Derelict bent on vengeance 1431 | -10/Mines | Discovered new exit (range 9) 1539 | -10/Mines | Learned 4 Materials zone layouts 1592 | -10/Mines | Found a damaged Exp. Sensor Array with a note attached 1596 | -10/Mines | Found Prototype Device 1777 | -10/Mines | Discovered new exit (range 12) 1984 | -10/Mines | Deemed a non-threat by the Exiles lab entrance 2215 | -10/Mines | Entered Materials 2215 | -9/Materials | Evolved 2 slots: Utility x2 2216 | -9/Materials | Identified exit to Materials 2786 | -9/Materials | Discovered exit to Materials (range 11) 2936 | -9/Materials | Build established: Scavenger-Mutant 3455 | -9/Materials | Discovered new exit (range 6) 3600 | -9/Materials | Identified exit to Mines 4191 | -9/Materials | Build established: Mutant 4297 | -9/Materials | Entered Mines 4297 | -9/Mines | Accompanied by 1 ally 4485 | -9/Mines | Learned Materials emergency access door positions 4528 | -9/Mines | Discovered exit to Materials (range 6) 4599 | -9/Mines | Build established: Scavenger-Mutant 4606 | -9/Mines | Discovered exit to Materials (range 9) 4612 | -9/Mines | Assembled infested the area 4617 | -9/Mines | Assisted by a Guerilla fighting off Assembled 5229 | -9/Mines | Learned location of Storage (-8) 5347 | -9/Mines | Learned Materials stockpile data 5410 | -9/Mines | Assisted by bots powering up and referring to "LRC-V3" 5649 | -9/Mines | Entered Materials 5649 | -8/Materials | Accompanied by 4 allies 5649 | -8/Materials | Evolved 2 slots: Utility x2 6085 | -8/Materials | Destroyed 7 combat bots 6373 | -8/Materials | Garrison activated, responded to threat 6669 | -8/Materials | Identified exit to Storage 7117 | -8/Materials | Discovered new exit (range 15) 7369 | -8/Materials | Build established: Mutant 7404 | -8/Materials | Discovered new exit (range 15) 7443 | -8/Materials | Entered Factory 7443 | -7/Factory | Accompanied by 2 allies 7443 | -7/Factory | Evolved 2 slots: Propulsion x1, Utility x1 7444 | -7/Factory | Identified Exp. Sensor Array 7453 | -7/Factory | Found Scrap Engine 8051 | -7/Factory | Discovered new exit (range 14) 8083 | -7/Factory | Identified exit to Lower Caves 8353 | -7/Factory | Build established: Construct 8405 | -7/Factory | Discovered new exit (range 16) 8421 | -7/Factory | Central database locked down 8424 | -7/Factory | Identified exit to Factory 8587 | -7/Factory | Entered Lower Caves 8587 | -7/Lower Caves | Accompanied by 2 allies 8716 | -7/Lower Caves | Encountered a Warlord checkpoint 9079 | -7/Lower Caves | Learned Factory stockpile data 9432 | -7/Lower Caves | Discovered new exit (range 6) 9436 | -7/Lower Caves | Identified exit to Lower Caves 9451 | -7/Lower Caves | Learned location of Extension (-6) 9600 | -7/Lower Caves | Entered another Lower Caves area 9600 | -7/Lower Caves | Accompanied by 2 allies 9633 | -7/Lower Caves | Discovered exit to Factory (range 14) 9748 | -7/Lower Caves | Encountered a Warlord checkpoint 10319 | -7/Lower Caves | Learned location of Zion (-6) 10474 | -7/Lower Caves | Discovered new exit (range 6) 10477 | -7/Lower Caves | Identified exit to Data Miner 10735 | -7/Lower Caves | Entered Data Miner 10735 | -7/Data Miner | Accompanied by 1 ally 10735 | -7/Data Miner | Discovered new exit (range 6) 10750 | -7/Data Miner | Met Data Miner 10763 | -7/Data Miner | Learned location of Section 7 (-2) 10763 | -7/Data Miner | Acquired the access code to Warlord's prototype stash 10775 | -7/Data Miner | Received God Mode back door access code from Data Miner 10792 | -7/Data Miner | Identified exit to Proximity Caves 10796 | -7/Data Miner | Entered Proximity Caves 10796 | -6/Proximity Caves | Accompanied by 1 ally 11135 | -6/Proximity Caves | Escorted by Enhanced Grunt 11484 | -6/Proximity Caves | Discovered exit to Factory (range 12) 11530 | -6/Proximity Caves | Entered Factory 11530 | -6/Factory | Accompanied by 2 allies 11530 | -6/Factory | Evolved 2 slots: Propulsion x1, Utility x1 11704 | -6/Factory | Identified exit to Lower Caves 11704 | -6/Factory | Identified exit to Extension 11783 | -6/Factory | Fabricated Imp. Focal Shield (x2) 11977 | -6/Factory | Found Hvy. Reactive Plating 12150 | -6/Factory | Fabricated H-55 Commando (x2) 12180 | -6/Factory | Incoming investigation squad redirected 12268 | -6/Factory | Fabricated Adv. Medium Treads (x2) 12313 | -6/Factory | Build established: Hacker-Construct 12383 | -6/Factory | Found Prototype Processor 12383 | -6/Factory | Identified Exp. Targeting Computer 12528 | -6/Factory | Repaired Transmission Jammer 12627 | -6/Factory | Entered Extension 12627 | -6/Extension | Accompanied by 2 allies 12672 | -6/Extension | Build established: Construct 12682 | -6/Extension | Rescued A7 12824 | -6/Extension | Rescued a captive Derelict 13071 | -6/Extension | Build established: Commander-Construct 13141 | -6/Extension | Spotted B-75 Beast 13158 | -6/Extension | Allies destroyed B-75 Beast 13161 | -6/Extension | Spotted B-75 Beast 13182 | -6/Extension | Destroyed B-75 Beast 13183 | -6/Extension | Incoming investigation squad redirected 13333 | -6/Extension | Rescued a captive Derelict 13382 | -6/Extension | Rescued a captive Derelict 13382 | -6/Extension | Rescued a captive Derelict 13556 | -6/Extension | Discovered new exit (range 10) 13557 | -6/Extension | Discovered new exit (range 6) 13616 | -6/Extension | Entered Cetus 13616 | -6/Cetus | Accompanied by 5 allies (A7) 13618 | -6/Cetus | Build established: Construct 13621 | -6/Cetus | Acquired a Cetus Manufacturing Module code from A7 13627 | -6/Cetus | Spotted Cetus Guard 13627 | -6/Cetus | Spotted Cetus Guard 13632 | -6/Cetus | Spotted Cetus Guard 13633 | -6/Cetus | Allies destroyed Cetus Guard 13640 | -6/Cetus | Spotted Cetus Guard 13642 | -6/Cetus | Allies destroyed Cetus Guard 13654 | -6/Cetus | Allies destroyed Cetus Guard 13663 | -6/Cetus | Allies destroyed Cetus Guard 13672 | -6/Cetus | Cetus Manufacturing Module disabled 13803 | -6/Cetus | Extracted ID and sensor layout for unrecognized location from A7's data core 13815 | -6/Cetus | Failed to start Cetus Manufacturing Module 13880 | -6/Cetus | Spotted Cetus Guard 13883 | -6/Cetus | Spotted Cetus Guard 13885 | -6/Cetus | Spotted Cetus Guard 13887 | -6/Cetus | Spotted Cetus Guard 13888 | -6/Cetus | Allies destroyed Cetus Guard 13891 | -6/Cetus | Discovered new exit (range 16) 13899 | -6/Cetus | Entered Archives 14040 | -6/Archives | Discovered new exit (range 16) 14173 | -6/Archives | Discovered new exit (range 16) 14268 | -6/Archives | Discovered new exit (range 15) 17603 | -6/Archives | Entered Hub_04(d) 17909 | -6/Hub_04(d) | Discovered new exit (range 16) 18454 | -6/Hub_04(d) | Garrison activated, responded to threat 18583 | -6/Hub_04(d) | Network Hub disabled 18583 | -6/Hub_04(d) | Network Hub disabled 18597 | -6/Hub_04(d) | Identified exit to Factory 18600 | -6/Hub_04(d) | Spotted Lightning 18600 | -6/Hub_04(d) | Spotted Lightning 18600 | -6/Hub_04(d) | Spotted Lightning 18613 | -6/Hub_04(d) | Incoming assault squad redirected 18626 | -6/Hub_04(d) | Spotted Lightning 18630 | -6/Hub_04(d) | Spotted Lightning 18631 | -6/Hub_04(d) | Spotted Lightning 18650 | -6/Hub_04(d) | Destroyed 8 combat bots 18653 | -6/Hub_04(d) | First assault squad dispatched 18662 | -6/Hub_04(d) | Entered Factory 18662 | -5/Factory | Evolved 2 slots: Power x1, Weapon x1 18791 | -5/Factory | Build established: Hacker-Construct 18962 | -5/Factory | First assault squad dispatched 19008 | -5/Factory | Discovered new exit (range 4) 19010 | -5/Factory | Identified exit to Factory 19107 | -5/Factory | Identified exit to Upper Caves 19114 | -5/Factory | Destroyed 9 combat bots 19282 | -5/Factory | Fabricated Lgt. Regenerative Plating? 19342 | -5/Factory | Incoming investigation squad redirected 19425 | -5/Factory | Garrison activated, responded to threat 19428 | -5/Factory | Repaired Imp. System Restoration Module? 19441 | -5/Factory | Fabricated Adv. Transmission Jammer? 19903 | -5/Factory | Discovered exit to Factory (range 5) 19969 | -5/Factory | Fabricated Mic. Antimatter Reactor? 20021 | -5/Factory | Incoming investigation squad redirected 20108 | -5/Factory | Fabricated Adv. Hacking Suite? 20112 | -5/Factory | Fabricated Enh. Nova Cannon? 20191 | -5/Factory | Incoming investigation squad redirected 20336 | -5/Factory | Fabricated Combat Drone Bay? 20625 | -5/Factory | Discovered exit to Factory (range 6) 20634 | -5/Factory | Repaired Centrium Medium Armor Plating 20657 | -5/Factory | Repaired Med. Insulated Plating? 21153 | -5/Factory | Incoming investigation squad redirected 21239 | -5/Factory | Entered Upper Caves 21345 | -5/Upper Caves | Identified exit to Upper Caves 21508 | -5/Upper Caves | Entered another Upper Caves area 21512 | -5/Upper Caves | Learned 8 Factory zone layouts 21589 | -5/Upper Caves | Discovered exit to Factory (range 6) 21648 | -5/Upper Caves | Encountered a Warlord checkpoint 21714 | -5/Upper Caves | Discovered new exit (range 3) 21787 | -5/Upper Caves | Identified exit to Zhirov 21788 | -5/Upper Caves | Entered Zhirov 21788 | -5/Zhirov | Discovered new exit (range 3) 21798 | -5/Zhirov | Met Zhirov 21807 | -5/Zhirov | Learned location of Quarantine (-2) 21807 | -5/Zhirov | Learned location of Testing (-3) 21807 | -5/Zhirov | Learned location of Command (-1) 21813 | -5/Zhirov | Zhirov requested help retrieving the SGEMP Prototype 21823 | -5/Zhirov | Found Alien Artifact 21823 | -5/Zhirov | Identified Integrated Dissipator 21823 | -5/Zhirov | Installed Integrated Dissipator, increased core heat dissipation (+20) 21848 | -5/Zhirov | Found Alien Artifact 21872 | -5/Zhirov | Identified exit to Proximity Caves 21874 | -5/Zhirov | Entered Proximity Caves 22393 | -4/Proximity Caves | Learned location of 1 exit from Research 22466 | -4/Proximity Caves | Entered Factory 22466 | -4/Factory | Evolved 2 slots: Utility x2 22557 | -4/Factory | Found Quantum Capacitor 22688 | -4/Factory | Identified exit to Upper Caves 22688 | -4/Factory | Identified exit to Armory 22729 | -4/Factory | Discovered new exit (range 12) 23256 | -4/Factory | First assault squad dispatched 23280 | -4/Factory | Incoming assault squad redirected 23337 | -4/Factory | Fabricated Enh. Quantum Rifle? 23383 | -4/Factory | Discovered new exit (range 15) 23519 | -4/Factory | Incoming investigation squad redirected 23748 | -4/Factory | Fabricated Adv. Heavy Siege Treads (x2) 23778 | -4/Factory | Incoming investigation squad redirected 23903 | -4/Factory | Fabricated Cld. Cesium-ion Thruster (x1) 24186 | -4/Factory | Incoming investigation squad redirected 24232 | -4/Factory | Fabricated Adv. Heavy Siege Treads? 24545 | -4/Factory | Cargo convoy interrupted 24680 | -4/Factory | Entered Upper Caves 25081 | -4/Upper Caves | Encountered a Warlord checkpoint 25157 | -4/Upper Caves | Learned 4 Research zone layouts 25554 | -4/Upper Caves | Discovered new exit (range 5) 25560 | -4/Upper Caves | Identified exit to Upper Caves 25654 | -4/Upper Caves | Entered another Upper Caves area 25735 | -4/Upper Caves | Discovered new exit (range 11) 25775 | -4/Upper Caves | Identified exit to Research 26707 | -4/Upper Caves | Discovered new exit (range 15) 26735 | -4/Upper Caves | Identified exit to Warlord 27026 | -4/Upper Caves | Entered Warlord 27119 | -4/Warlord | Discovered new exit (range 12) 27196 | -4/Warlord | System corruption cleaned by Quarantine Array 27819 | -4/Warlord | Build established: Commander-Construct 28011 | -4/Warlord | Visited the Vortex Lab 28018 | -4/Warlord | Warlord's base attacked by MAIN.C 28019 | -4/Warlord | Found Prototype Energy Gun 28019 | -4/Warlord | Identified Vortex Shotgun 28222 | -4/Warlord | Met Warlord 28243 | -4/Warlord | Opened Warlord's prototype stash 28251 | -4/Warlord | Found Prototype Reactor 28251 | -4/Warlord | Identified Vortex Chain Reactor 28282 | -4/Warlord | Found Prototype Device 28282 | -4/Warlord | Identified Thermal Barrier 28292 | -4/Warlord | Found Prototype Hackware 28368 | -4/Warlord | Warlord forces counterattacked 28468 | -4/Warlord | Opened side exit 28510 | -4/Warlord | Identified exit to Proximity Caves 28518 | -4/Warlord | Spotted Executioner 28518 | -4/Warlord | Entered Proximity Caves 28518 | -3/Proximity Caves | Accompanied by 4 allies 28540 | -3/Proximity Caves | Build established: Commander-Mutant 28777 | -3/Proximity Caves | Spotted B-86 Titan 28789 | -3/Proximity Caves | Destroyed B-86 Titan 28908 | -3/Proximity Caves | Discovered exit to Research (range 8) 28934 | -3/Proximity Caves | Found Alien Artifact 28934 | -3/Proximity Caves | Identified Core Expander 28934 | -3/Proximity Caves | Installed Core Expander, added new Propulsion slot 28987 | -3/Proximity Caves | Entered Research 28987 | -3/Research | Accompanied by 3 allies 28987 | -3/Research | Evolved 2 slots: Propulsion x1, Utility x1 28988 | -3/Research | Identified exit to Research 29080 | -3/Research | Identified Ghost Barrier 29081 | -3/Research | Identified exit to Testing 29205 | -3/Research | Found Adv. Powered Armor 29392 | -3/Research | Build established: Hacker-Mutant 30275 | -3/Research | Entered Testing 30318 | -3/Testing | Found Prototype Energy Cannon 30434 | -3/Testing | Garrison activated, responded to threat 30472 | -3/Testing | Found Prototype Energy Cannon 30473 | -3/Testing | Identified Null Cannon 30617 | -3/Testing | Found Prototype Launcher 30617 | -3/Testing | Identified Com. Tesla Bomb Launcher 30956 | -3/Testing | Spotted PP-YNLQSXPTE3 30974 | -3/Testing | Destroyed PP-YNLQSXPTE3 30994 | -3/Testing | Found Prototype Special Weapon 30995 | -3/Testing | Identified Gui. Remote Datajack 31007 | -3/Testing | Found Prototype Device 31007 | -3/Testing | Identified Exp. Weapon Cycler 31114 | -3/Testing | Garrison activated, responded to threat 31131 | -3/Testing | Found Prototype Protection 31131 | -3/Testing | Identified SHELL Armor 31621 | -3/Testing | Found Prototype Energy Cannon 32140 | -3/Testing | Found Prototype Protection 32140 | -3/Testing | Identified Hvy. Regenerative Plating 32241 | -3/Testing | Discovered exit to Research (range 10) 32400 | -3/Testing | Repaired Adv. Transmission Jammer 32510 | -3/Testing | Repaired Exp. Sensor Array 32535 | -3/Testing | Found Prototype Launcher 32688 | -3/Testing | Entered Research 32688 | -2/Research | Accompanied by 1 ally 32688 | -2/Research | Warlord forces began assault on 0b10 32688 | -2/Research | Evolved 2 slots: Utility x1, Weapon x1 32798 | -2/Research | Research machine network offline 32856 | -2/Research | Fabricated Beam Splitter? 33285 | -2/Research | Discovered new exit (range 6) 33285 | -2/Research | Spotted B-90 Cyclops 33287 | -2/Research | Identified exit to Quarantine 33287 | -2/Research | Entered Quarantine 33320 | -2/Quarantine | Found Alien Artifact 33571 | -2/Quarantine | Found Alien Artifact 33571 | -2/Quarantine | Identified Phase Armor 33576 | -2/Quarantine | Identified Potential Cannon 33651 | -2/Quarantine | Found Alien Artifact 33651 | -2/Quarantine | Identified Terrabomb 33651 | -2/Quarantine | Used Terrabomb 33678 | -2/Quarantine | Found Alien Artifact 33685 | -2/Quarantine | Identified Phase Redirector 33725 | -2/Quarantine | Identified Adv. Micro-nuke Launcher 33768 | -2/Quarantine | Found Alien Energy Cannon 33771 | -2/Quarantine | Identified Core Cannon 33780 | -2/Quarantine | Found Alien Impact Weapon 33780 | -2/Quarantine | Identified Core Stripper 33807 | -2/Quarantine | Discovered new exit (range 15) 33817 | -2/Quarantine | Identified exit to Access 33817 | -2/Quarantine | Spotted Alpha 7 33908 | -2/Quarantine | Found Prototype Device 34010 | -2/Quarantine | Identified Exp. Transmission Jammer 34046 | -2/Quarantine | Found Alien Slashing Weapon 34421 | -2/Quarantine | Spotted Fortress 34563 | -2/Quarantine | Destroyed Fortress 34572 | -2/Quarantine | Found Prototype Device 34572 | -2/Quarantine | Identified Exp. Force Field 34584 | -2/Quarantine | Identified Sigix Broadsword 34587 | -2/Quarantine | Found Exp. EM Disruption Field 34621 | -2/Quarantine | Discovered new exit (range 6) 34623 | -2/Quarantine | Identified exit to Section 7 34960 | -2/Quarantine | Entered Section 7 34972 | -2/Section 7 | Found Alien Artifact 35072 | -2/Section 7 | Spotted B-90 Cyclops 35072 | -2/Section 7 | Destroyed B-90 Cyclops 35167 | -2/Section 7 | Found Alien Artifact 35206 | -2/Section 7 | Spotted S7 Guard 35231 | -2/Section 7 | Destroyed S7 Guard 35291 | -2/Section 7 | Identified Integrity Redistributor 35291 | -2/Section 7 | Identified Spacefold Activator 35412 | -2/Section 7 | Found Integrated Dissipator 35412 | -2/Section 7 | Installed Integrated Dissipator, increased core heat dissipation (+20) 35436 | -2/Section 7 | Found Alien Artifact 35561 | -2/Section 7 | Identified Core Membrane 35561 | -2/Section 7 | Installed Core Membrane, gained immunity to corruption 35607 | -2/Section 7 | Found Alien Artifact 35649 | -2/Section 7 | Identified Integrated Reactor 35649 | -2/Section 7 | Installed Integrated Reactor, increased core energy generation (+10) 36043 | -2/Section 7 | Spotted S7 Guard 36049 | -2/Section 7 | Found Alien Artifact 36164 | -2/Section 7 | Identified Core Physics Calibrator 36763 | -2/Section 7 | Spotted S7 Guard 36785 | -2/Section 7 | Found Alien Artifact 36924 | -2/Section 7 | Identified Navigation Efficiency Matrix 36993 | -2/Section 7 | Discovered exit to Access (range 11) 37017 | -2/Section 7 | Repaired Exp. Weapon Shielding? 37219 | -2/Section 7 | Spotted Alpha 7 37351 | -2/Section 7 | Spotted B-99 Colossus 37375 | -2/Section 7 | Found Integrated Dissipator 37375 | -2/Section 7 | Installed Integrated Dissipator, increased core heat dissipation (+20) 37378 | -2/Section 7 | Found Integrated Dissipator 37378 | -2/Section 7 | Installed Integrated Dissipator, increased core heat dissipation (+20) 37380 | -2/Section 7 | Found Integrated Dissipator 37380 | -2/Section 7 | Installed Integrated Dissipator, increased core heat dissipation (+20) 37405 | -2/Section 7 | Found Alien Artifact 37405 | -2/Section 7 | Identified LRC Boosters 37405 | -2/Section 7 | Installed LRC Boosters, increased mass support (+10) 37433 | -2/Section 7 | Found Integrity Redistributor 37502 | -2/Section 7 | Found Alien Artifact 37867 | -2/Section 7 | Identified Transdimensional Reconstructor (x2) 37867 | -2/Section 7 | Identified Subatomic Replicator 37868 | -2/Section 7 | Entered Access 37868 | -1/Access | Accompanied by 1 ally 37868 | -1/Access | Evolved 2 slots: Utility x2 38120 | -1/Access | Identified exit to Command 38134 | -1/Access | Found Hellfire Missile Launcher 38431 | -1/Access | Destroyed 8 combat bots 38765 | -1/Access | Fabricated Cld. Antigrav System (x1) 39118 | -1/Access | First assault squad dispatched 39144 | -1/Access | Incoming assault squad redirected 39234 | -1/Access | Found Exp. Core Analyzer 39248 | -1/Access | Destroyed 15 combat bots 39330 | -1/Access | Entered Command 39379 | -1/Command | Build established: Wizard-Mutant 39434 | -1/Command | Disengaged cave seal 39434 | -1/Command | Derelicts emerged from the dark tunnel 39434 | -1/Command | Welcomed Warlord to Command 39835 | -1/Command | Found Prototype Processor 39835 | -1/Command | Identified Exp. Melee Analysis Suite 39844 | -1/Command | Incoming investigation squad redirected 39857 | -1/Command | First assault squad dispatched 39875 | -1/Command | Incoming assault squad redirected 39881 | -1/Command | Spotted B-99 Colossus 39897 | -1/Command | Destroyed B-99 Colossus 39913 | -1/Command | Incoming assault squad redirected 39967 | -1/Command | Disengaged cave seal 39967 | -1/Command | Derelicts emerged from the dark tunnel 40055 | -1/Command | Found Exp. Shock Absorption System 40152 | -1/Command | Incoming assault squad redirected 40251 | -1/Command | Spotted M Guard 40251 | -1/Command | Spotted M Guard 40251 | -1/Command | Spotted Combat Programmer 40253 | -1/Command | Spotted Combat Programmer 40270 | -1/Command | Warlord commented on Warlord statues 40283 | -1/Command | Combat Programmer assimilated allied QG-59K(b) 40299 | -1/Command | Destroyed Combat Programmer 40300 | -1/Command | All MAIN.C guards destroyed 40497 | -1/Command | Met MAIN.C 40501 | -1/Command | 0b10 Conduit disabled 40526 | -1/Command | Destroyed MAIN.C Shell 40527 | -1/Command | MAIN.C activated Command garrisons 40553 | *** | Establishing Free Derelict Territories! Last Messages --------------- 40536_ Blast Slug penetrates 0b10 Conduit. 40536_ Blast Slug penetrates MAIN.C. 40539_ Blast Slug penetrates 0b10 Conduit. 40539_ Blast Slug penetrates MAIN.C. 40542_ Ended siege mode. 40542_ Blast Slug penetrates 0b10 Conduit. 40542_ Blast Slug penetrates MAIN.C. 40548_ MAIN.C knocked back. 40548_ Blast Slug penetrates R0-3KI(g). 40548_ R0-3KI(g) knocked back. 40548_ Blast Slug penetrates 0b10 Conduit. 40548_ Blast Slug penetrates JP-L5U(g). 40549_ ZY-L1N suffers critical hit (Blast). 40553_ MAIN.C: "I hope you know you're still going to DIE HERE WITH ME!" 40553_ MAIN.C destroyed. 40553_ R0-3KI(g) knocked back. ZY-L1N: Victory! Sure there's still lots to do, but without MAIN.C at the helm 0b10 doesn't stand a chance. We've got this... Map ----- +----------------------------------------------------+ | ?????????????????????????????????????????????????? | | ?????????????????????????????????????????????????? | | ?????????????????????????????????????????????????? | | ?????????????????????????????????????????????????? | | ?????????????????????????????????????????????????? | | ?????????????????????????????????????????????????? | | ?????????????????????????????????????????????????? | | ?????????????????????????????????????????????????? | | ?????????????????????????????????????????????????? | | ?????????????????????????????????????????????????? | | ?????????????????????????????????????????????????? | | ?????????????????????????????????????????????????? | | ?????????????????????????????????????????????????? | | ?????????????????????????????????????????????????? | | ?????????????????????????????????????????????????? | | ?????????????????????????????????????????????????? | | ?????????????????????????????????????????????????? | | ?????????????????????????????????????????????????? | | ?????????????????????????????????????????????????? | | ??????????????????################???????????????? | | ????????????????""" """" #???????????????? | | ???????????????? "" #???????????????? | | ????????????????" "" ################# | | ?????????????????"""""" % % g % | | ??????????????? " """ / | | ?????????????????""""" @ g%W%/ | | ?????????????????""""" g ################# | | ??????????????????"""" % g #???????????????? | | ????????????????? ]% % #???????????????? | | ???????????????? !%= g% #???????????????? | | ???????????????"" [ % """#???????????????? | | ??????????????? """#???????????????? | | ?????????????? """""#???????????????? | | ????????????? " #???????????????? | | ????????????? " #???????????????? | | ?????????????? """" " #???????????????? | | ?????????????? " """" ????????????????? | | ???????????????? " ????????????????????? | | ??????????????????" """"? ?????????????????????? | | ?????????????????????????"???????????????????????? | | ?????????????????????????????????????????????????? | | ?????????????????????????????????????????????????? | | ?????????????????????????????????????????????????? | | ?????????????????????????????????????????????????? | | ?????????????????????????????????????????????????? | | ?????????????????????????????????????????????????? | | ?????????????????????????????????????????????????? | | ?????????????????????????????????????????????????? | | ?????????????????????????????????????????????????? | | ?????????????????????????????????????????????????? | +----------------------------------------------------+ Best States ------------- Heat Dissipation 152 Energy Generation 87 Energy Capacity 1626 Matter Stores 790 Matter Capacity 800 Sight Range 16 Robot Scan Range 20 Terrain Scan Density 10 Jamming Range 22 Additional Mass Support 20 EM Shielding 4 Armor Coverage 1200 Resistance: KI 40 Resistance: TH 75 Resistance: EX 75 Resistance: EM 75 Weapon Shielding 66 Weapon Cycling 30 Evasion (%) 67 Targeting Accuracy 12 Core Analysis 8 Armor Integrity Analysis 40 Recoil Reduction 6 Offensive Hacking 40 Defensive Hacking 20 Authchip Count 1 Item Schematics ----------------- Combat Drone Bay | -7/Data Miner | Free Lgt. Regenerative Plating | -7/Data Miner | Free Cld. Cesium-ion Thruster | -7/Data Miner | Free Thermal Defense Suite | -7/Data Miner | Free Cld. Plasma Cannon | -7/Data Miner | Free Nuclear Pulse Array | -7/Data Miner | Free Adv. Shield Generator | -7/Data Miner | Free Tesla Rifle | -7/Data Miner | Free Remote Shield | -7/Data Miner | Free Adv. Trap Extractor | -7/Data Miner | Free Wave Gun | -7/Data Miner | Free Adv. Medium Treads | -7/Data Miner | Free Adv. Transmission Jammer | -6/Hub_04(d) | Hacked Adv. Hacking Suite | -5/Factory | Hacked Imp. Powered Armor | -5/Factory | Hacked Assault Drone Bay | -5/Zhirov | Free Exp. Heat Sink | -5/Zhirov | Free Exp. Optical Array | -5/Zhirov | Free Imp. Arc Thrower | -5/Zhirov | Free Enh. Quantum Rifle | -4/Factory | Hacked Adv. Heavy Siege Treads | -4/Factory | Hacked Cld. Antigrav System | -4/Factory | Hacked Beam Splitter | -3/Research | Hacked Q-thruster | -3/Research | Hacked Exp. Core Analyzer | -3/Testing | Hacked Biometal Heavy Treads | -2/Quarantine | Hacked Exp. Transmission Jammer | -2/Quarantine | Scanalyzed Cld. Linear Gravjet | -2/Section 7 | Hacked Robot Schematics ------------------ M-28 Smith | -7/Data Miner | Free D-53 Grenadier | -7/Data Miner | Free G-50 Soldier | -7/Data Miner | Free H-55 Commando | -7/Data Miner | Free E-15 Imp | -7/Data Miner | Free B-48 Gladiator | -7/Data Miner | Free S-27 Virus | -7/Data Miner | Free Fabricated ------------ Imp. Focal Shield | x2 | -6/Factory | Preloaded H-55 Commando | x2 | -6/Factory | Preloaded Adv. Medium Treads | x2 | -6/Factory Lgt. Regenerative Plating | x1 | -5/Factory | Authchip Adv. Transmission Jammer | x1 | -5/Factory Mic. Antimatter Reactor | x2 | -5/Factory | Preloaded Adv. Hacking Suite | x1 | -5/Factory Enh. Nova Cannon | x1 | -5/Factory | Preloaded Combat Drone Bay | x1 | -5/Factory Enh. Quantum Rifle | x2 | -4/Factory Adv. Heavy Siege Treads | x2 | -4/Factory | Preloaded Cld. Cesium-ion Thruster | x1 | -4/Factory Adv. Heavy Siege Treads | x2 | -4/Factory Beam Splitter | x1 | -2/Research Cld. Antigrav System | x1 | -1/Access Alien Tech Used ----------------- Integrated Dissipator Core Expander Phase Armor Terrabomb Core Cannon Core Stripper Sigix Broadsword Core Membrane Integrated Reactor Core Physics Calibrator LRC Boosters Spacefold Activator Achievements -------------- None Challenges ------------ None Game ------ Seed FluxLegThermoblaster Manual? 0 Play Time 10:12:04 Cumulative 663.6 hours Start 2022.12.23 @ 16:24:37 End 2022.12.24 @ 03:59:46 Sessions 3 Manual Loads 0 Difficulty Rogue Special Mode None Game No. 207 Rogue 203 Adventurer 4 Explorer 0 Win Type 7 Total 19 Types 8/2/6/0/0/0/1/2/0 Lore% 87 Gallery% 89 Achievement% 77 Wizard Run 0 Options --------- ASCII 1 Keyboard 0 Movement Arrows Keybinds 0 Fullscreen 1 Font 18/SmallcapsGlow Map View 76x50 Tactical HUD 1 Map Filters NONE Filters NONE Steam 1 RUN: 43af4774-39a2-4564-8a55-4e453b6b7a0d